Workbook

Sheet MainSheet
A1: 2010-08-02 | B1: Ocean Thermal Energy Conversion (OTEC) System
K2: Given
K3: PropsSI
K4: Rankine
A5: Fluid = | B5: ammonia | D5: etaturb = | E5: 0.8 | G5: mdot = | H5: 1000 | I5: [kg/s] | K5: Periodic
A6: Units = | B6: SI_C | D6: etapump = | E6: 0.8 | K6: Answer
B8: State | C8: T [oC] | D8: x | E8: P [kPa] | F8: h [kJ/kg] | G8: s [kJ/kg·K] | H8: v [m3/kg]
B9: 1
B10: 2s
B11: 2
B12: 3
B13: 4s
B14: 4
B15: 4a
B16: 1

Sheet DataSheet
A1: This data table is set up to update if you change the "fluid" parameter on the main sheet.
C2: s [kJ/kgK] | E2: ρ [kg/m3] | G2: v[m3/kg] | J2: kJ/kg
B3: Temp. [C] | C3: x = 0 | D3: x = 1 | E3: ρliquid | F3: ρgas | G3: vliquid | H3: vgas | I3: P [kPa] | J3: uliq | K3: ugas
B4: -50 | C4: =[1]!PropsSI("S","T",$B4+273.15,"Q",0,Fluid)/1000 -> 0.5660863334 | D4: =[1]!PropsSI("S","T",$B4+273.15,"Q",1,Fluid)/1000 -> 6.911207493 | E4: =[1]!PropsSI("D","T",$B4+273.15,"Q",0,Fluid) -> 702.0862574 | F4: =[1]!PropsSI("D","T",$B4+273.15,"Q",1,Fluid) -> 0.3805537728 | G4: =IF(E4<>0,1/E4,"") -> 0.001424326412 | H4: =IF(F4<>0,1/F4,"") -> 2.627749536 | I4: =[1]!PropsSI("P","T",$B4+273.15,"Q",1,Fluid)/1000 -> 40.83639923 | J4: =[1]!PropsSI("U","T",$B4+273.15,"Q",0,Fluid)/1000 -> 118.3690264 | K4: =[1]!PropsSI("U","T",$B4+273.15,"Q",1,Fluid)/1000 -> 1427.033149
B5: -49 | C5: =[1]!PropsSI("S","T",$B5+273.15,"Q",0,Fluid)/1000 -> 0.5855870433 | D5: =[1]!PropsSI("S","T",$B5+273.15,"Q",1,Fluid)/1000 -> 6.890509955 | E5: =[1]!PropsSI("D","T",$B5+273.15,"Q",0,Fluid) -> 700.9104119 | F5: =[1]!PropsSI("D","T",$B5+273.15,"Q",1,Fluid) -> 0.4020662677 | G5: =IF(E5<>0,1/E5,"") -> 0.001426715858 | H5: =IF(F5<>0,1/F5,"") -> 2.487152194 | I5: =[1]!PropsSI("P","T",$B5+273.15,"Q",1,Fluid)/1000 -> 43.31223582 | J5: =[1]!PropsSI("U","T",$B5+273.15,"Q",0,Fluid)/1000 -> 122.7302545 | K5: =[1]!PropsSI("U","T",$B5+273.15,"Q",1,Fluid)/1000 -> 1428.316397
B6: -48 | C6: =[1]!PropsSI("S","T",$B6+273.15,"Q",0,Fluid)/1000 -> 0.6050251104 | D6: =[1]!PropsSI("S","T",$B6+273.15,"Q",1,Fluid)/1000 -> 6.870042402 | E6: =[1]!PropsSI("D","T",$B6+273.15,"Q",0,Fluid) -> 699.7305601 | F6: =[1]!PropsSI("D","T",$B6+273.15,"Q",1,Fluid) -> 0.4245575225 | G6: 0.001429121518 | H6: 2.355393432 | I6: =[1]!PropsSI("P","T",$B6+273.15,"Q",1,Fluid)/1000 -> 45.91081645 | J6: =[1]!PropsSI("U","T",$B6+273.15,"Q",0,Fluid)/1000 -> 127.0969037 | K6: =[1]!PropsSI("U","T",$B6+273.15,"Q",1,Fluid)/1000 -> 1429.593124
B7: -47 | C7: =[1]!PropsSI("S","T",$B7+273.15,"Q",0,Fluid)/1000 -> 0.6244009265 | D7: =[1]!PropsSI("S","T",$B7+273.15,"Q",1,Fluid)/1000 -> 6.849800805 | E7: =[1]!PropsSI("D","T",$B7+273.15,"Q",0,Fluid) -> 698.5467269 | F7: =[1]!PropsSI("D","T",$B7+273.15,"Q",1,Fluid) -> 0.448060343 | G7: 0.001431543462 | H7: 2.231842241 | I7: =[1]!PropsSI("P","T",$B7+273.15,"Q",1,Fluid)/1000 -> 48.63673486 | J7: =[1]!PropsSI("U","T",$B7+273.15,"Q",0,Fluid)/1000 -> 131.468937 | K7: =[1]!PropsSI("U","T",$B7+273.15,"Q",1,Fluid)/1000 -> 1430.863226
B8: -46 | C8: =[1]!PropsSI("S","T",$B8+273.15,"Q",0,Fluid)/1000 -> 0.6437148765 | D8: =[1]!PropsSI("S","T",$B8+273.15,"Q",1,Fluid)/1000 -> 6.829781204 | E8: =[1]!PropsSI("D","T",$B8+273.15,"Q",0,Fluid) -> 697.3589365 | F8: =[1]!PropsSI("D","T",$B8+273.15,"Q",1,Fluid) -> 0.4726081906 | G8: 0.001433981767 | H8: 2.115917625 | I8: =[1]!PropsSI("P","T",$B8+273.15,"Q",1,Fluid)/1000 -> 51.49469103 | J8: =[1]!PropsSI("U","T",$B8+273.15,"Q",0,Fluid)/1000 -> 135.8463166 | K8: =[1]!PropsSI("U","T",$B8+273.15,"Q",1,Fluid)/1000 -> 1432.126601
B9: -45 | C9: =[1]!PropsSI("S","T",$B9+273.15,"Q",0,Fluid)/1000 -> 0.6629673388 | D9: =[1]!PropsSI("S","T",$B9+273.15,"Q",1,Fluid)/1000 -> 6.809979707 | E9: =[1]!PropsSI("D","T",$B9+273.15,"Q",0,Fluid) -> 696.1672117 | F9: =[1]!PropsSI("D","T",$B9+273.15,"Q",1,Fluid) -> 0.4982351845 | G9: 0.00143643651 | H9: 2.007084267 | I9: =[1]!PropsSI("P","T",$B9+273.15,"Q",1,Fluid)/1000 -> 54.4894914 | J9: =[1]!PropsSI("U","T",$B9+273.15,"Q",0,Fluid)/1000 -> 140.2290044 | K9: =[1]!PropsSI("U","T",$B9+273.15,"Q",1,Fluid)/1000 -> 1433.383146
B10: -44 | C10: =[1]!PropsSI("S","T",$B10+273.15,"Q",0,Fluid)/1000 -> 0.6821586862 | D10: =[1]!PropsSI("S","T",$B10+273.15,"Q",1,Fluid)/1000 -> 6.790392491 | E10: =[1]!PropsSI("D","T",$B10+273.15,"Q",0,Fluid) -> 694.9715743 | F10: =[1]!PropsSI("D","T",$B10+273.15,"Q",1,Fluid) -> 0.5249761049 | G10: 0.001438907773 | H10: 1.904848603 | I10: =[1]!PropsSI("P","T",$B10+273.15,"Q",1,Fluid)/1000 -> 57.62604917 | J10: =[1]!PropsSI("U","T",$B10+273.15,"Q",0,Fluid)/1000 -> 144.6169625 | K10: =[1]!PropsSI("U","T",$B10+273.15,"Q",1,Fluid)/1000 -> 1434.632758
B11: -43 | C11: =[1]!PropsSI("S","T",$B11+273.15,"Q",0,Fluid)/1000 -> 0.701289287 | D11: =[1]!PropsSI("S","T",$B11+273.15,"Q",1,Fluid)/1000 -> 6.771015795 | E11: =[1]!PropsSI("D","T",$B11+273.15,"Q",0,Fluid) -> 693.772045 | F11: =[1]!PropsSI("D","T",$B11+273.15,"Q",1,Fluid) -> 0.5528663953 | G11: 0.001441395639 | H11: 1.808755259 | I11: =[1]!PropsSI("P","T",$B11+273.15,"Q",1,Fluid)/1000 -> 60.90938444 | J11: =[1]!PropsSI("U","T",$B11+273.15,"Q",0,Fluid)/1000 -> 149.0101524 | K11: =[1]!PropsSI("U","T",$B11+273.15,"Q",1,Fluid)/1000 -> 1435.875333
B12: -42 | C12: =[1]!PropsSI("S","T",$B12+273.15,"Q",0,Fluid)/1000 -> 0.7203595048 | D12: =[1]!PropsSI("S","T",$B12+273.15,"Q",1,Fluid)/1000 -> 6.751845927 | E12: =[1]!PropsSI("D","T",$B12+273.15,"Q",0,Fluid) -> 692.5686431 | F12: =[1]!PropsSI("D","T",$B12+273.15,"Q",1,Fluid) -> 0.5819421649 | G12: 0.001443900197 | H12: 1.718383819 | I12: =[1]!PropsSI("P","T",$B12+273.15,"Q",1,Fluid)/1000 -> 64.34462435 | J12: =[1]!PropsSI("U","T",$B12+273.15,"Q",0,Fluid)/1000 -> 153.4085364 | K12: =[1]!PropsSI("U","T",$B12+273.15,"Q",1,Fluid)/1000 -> 1437.110769
B13: -41 | C13: =[1]!PropsSI("S","T",$B13+273.15,"Q",0,Fluid)/1000 -> 0.7393697004 | D13: =[1]!PropsSI("S","T",$B13+273.15,"Q",1,Fluid)/1000 -> 6.732879257 | E13: =[1]!PropsSI("D","T",$B13+273.15,"Q",0,Fluid) -> 691.3613868 | F13: =[1]!PropsSI("D","T",$B13+273.15,"Q",1,Fluid) -> 0.6122401918 | G13: 0.001446421537 | H13: 1.633345888 | I13: =[1]!PropsSI("P","T",$B13+273.15,"Q",1,Fluid)/1000 -> 67.93700319 | J13: =[1]!PropsSI("U","T",$B13+273.15,"Q",0,Fluid)/1000 -> 157.8120764 | K13: =[1]!PropsSI("U","T",$B13+273.15,"Q",1,Fluid)/1000 -> 1438.338961
B14: -40 | C14: =[1]!PropsSI("S","T",$B14+273.15,"Q",0,Fluid)/1000 -> 0.7583202313 | D14: =[1]!PropsSI("S","T",$B14+273.15,"Q",1,Fluid)/1000 -> 6.714112215 | E14: =[1]!PropsSI("D","T",$B14+273.15,"Q",0,Fluid) -> 690.1502927 | F14: =[1]!PropsSI("D","T",$B14+273.15,"Q",1,Fluid) -> 0.6437979257 | G14: 0.001448959756 | H14: 1.55328242 | I14: =[1]!PropsSI("P","T",$B14+273.15,"Q",1,Fluid)/1000 -> 71.69186239 | J14: =[1]!PropsSI("U","T",$B14+273.15,"Q",0,Fluid)/1000 -> 162.2207353 | K14: =[1]!PropsSI("U","T",$B14+273.15,"Q",1,Fluid)/1000 -> 1439.559805
B15: -39 | C15: =[1]!PropsSI("S","T",$B15+273.15,"Q",0,Fluid)/1000 -> 0.7772114529 | D15: =[1]!PropsSI("S","T",$B15+273.15,"Q",1,Fluid)/1000 -> 6.695541293 | E15: =[1]!PropsSI("D","T",$B15+273.15,"Q",0,Fluid) -> 688.9353764 | F15: =[1]!PropsSI("D","T",$B15+273.15,"Q",1,Fluid) -> 0.6766534908 | G15: 0.001451514952 | H15: 1.477861289 | I15: =[1]!PropsSI("P","T",$B15+273.15,"Q",1,Fluid)/1000 -> 75.61465058 | J15: =[1]!PropsSI("U","T",$B15+273.15,"Q",0,Fluid)/1000 -> 166.6344761 | K15: =[1]!PropsSI("U","T",$B15+273.15,"Q",1,Fluid)/1000 -> 1440.773199
B16: -38 | C16: =[1]!PropsSI("S","T",$B16+273.15,"Q",0,Fluid)/1000 -> 0.7960437189 | D16: =[1]!PropsSI("S","T",$B16+273.15,"Q",1,Fluid)/1000 -> 6.677163044 | E16: =[1]!PropsSI("D","T",$B16+273.15,"Q",0,Fluid) -> 687.7166521 | F16: =[1]!PropsSI("D","T",$B16+273.15,"Q",1,Fluid) -> 0.7108456888 | G16: 0.001454087228 | H16: 1.406775079 | I16: =[1]!PropsSI("P","T",$B16+273.15,"Q",1,Fluid)/1000 -> 79.71092351 | J16: =[1]!PropsSI("U","T",$B16+273.15,"Q",0,Fluid)/1000 -> 171.0532627 | K16: =[1]!PropsSI("U","T",$B16+273.15,"Q",1,Fluid)/1000 -> 1441.979038
B17: -37 | C17: =[1]!PropsSI("S","T",$B17+273.15,"Q",0,Fluid)/1000 -> 0.8148173817 | D17: =[1]!PropsSI("S","T",$B17+273.15,"Q",1,Fluid)/1000 -> 6.658974079 | E17: =[1]!PropsSI("D","T",$B17+273.15,"Q",0,Fluid) -> 686.4941324 | F17: =[1]!PropsSI("D","T",$B17+273.15,"Q",1,Fluid) -> 0.7464140022 | G17: 0.001456676689 | H17: 1.339739068 | I17: =[1]!PropsSI("P","T",$B17+273.15,"Q",1,Fluid)/1000 -> 83.98634391 | J17: =[1]!PropsSI("U","T",$B17+273.15,"Q",0,Fluid)/1000 -> 175.4770596 | K17: =[1]!PropsSI("U","T",$B17+273.15,"Q",1,Fluid)/1000 -> 1443.177218
B18: -36 | C18: =[1]!PropsSI("S","T",$B18+273.15,"Q",0,Fluid)/1000 -> 0.8335327932 | D18: =[1]!PropsSI("S","T",$B18+273.15,"Q",1,Fluid)/1000 -> 6.640971063 | E18: =[1]!PropsSI("D","T",$B18+273.15,"Q",0,Fluid) -> 685.2678287 | F18: =[1]!PropsSI("D","T",$B18+273.15,"Q",1,Fluid) -> 0.783398598 | G18: 0.001459283448 | H18: 1.276489392 | I18: =[1]!PropsSI("P","T",$B18+273.15,"Q",1,Fluid)/1000 -> 88.44668143 | J18: =[1]!PropsSI("U","T",$B18+273.15,"Q",0,Fluid)/1000 -> 179.9058322 | K18: =[1]!PropsSI("U","T",$B18+273.15,"Q",1,Fluid)/1000 -> 1444.367636
B19: -35 | C19: =[1]!PropsSI("S","T",$B19+273.15,"Q",0,Fluid)/1000 -> 0.8521903045 | D19: =[1]!PropsSI("S","T",$B19+273.15,"Q",1,Fluid)/1000 -> 6.623150722 | E19: =[1]!PropsSI("D","T",$B19+273.15,"Q",0,Fluid) -> 684.037751 | F19: =[1]!PropsSI("D","T",$B19+273.15,"Q",1,Fluid) -> 0.8218403306 | G19: 0.001461907619 | H19: 1.216781366 | I19: =[1]!PropsSI("P","T",$B19+273.15,"Q",1,Fluid)/1000 -> 93.09781243 | J19: =[1]!PropsSI("U","T",$B19+273.15,"Q",0,Fluid)/1000 -> 184.3395468 | K19: =[1]!PropsSI("U","T",$B19+273.15,"Q",1,Fluid)/1000 -> 1445.550187
B20: -34 | C20: =[1]!PropsSI("S","T",$B20+273.15,"Q",0,Fluid)/1000 -> 0.8707902673 | D20: =[1]!PropsSI("S","T",$B20+273.15,"Q",1,Fluid)/1000 -> 6.605509834 | E20: =[1]!PropsSI("D","T",$B20+273.15,"Q",0,Fluid) -> 682.8039077 | F20: =[1]!PropsSI("D","T",$B20+273.15,"Q",1,Fluid) -> 0.8617807462 | G20: 0.001464549322 | H20: 1.160387958 | I20: =[1]!PropsSI("P","T",$B20+273.15,"Q",1,Fluid)/1000 -> 97.94571971 | J20: =[1]!PropsSI("U","T",$B20+273.15,"Q",0,Fluid)/1000 -> 188.7781708 | K20: =[1]!PropsSI("U","T",$B20+273.15,"Q",1,Fluid)/1000 -> 1446.724768
B21: -33 | C21: =[1]!PropsSI("S","T",$B21+273.15,"Q",0,Fluid)/1000 -> 0.8893330333 | D21: =[1]!PropsSI("S","T",$B21+273.15,"Q",1,Fluid)/1000 -> 6.588045232 | E21: =[1]!PropsSI("D","T",$B21+273.15,"Q",0,Fluid) -> 681.5663058 | F21: =[1]!PropsSI("D","T",$B21+273.15,"Q",1,Fluid) -> 0.9032620863 | G21: 0.00146720868 | H21: 1.107098388 | I21: =[1]!PropsSI("P","T",$B21+273.15,"Q",1,Fluid)/1000 -> 102.9964923 | J21: =[1]!PropsSI("U","T",$B21+273.15,"Q",0,Fluid)/1000 -> 193.2216728 | K21: =[1]!PropsSI("U","T",$B21+273.15,"Q",1,Fluid)/1000 -> 1447.891274
B22: -32 | C22: =[1]!PropsSI("S","T",$B22+273.15,"Q",0,Fluid)/1000 -> 0.9078189552 | D22: =[1]!PropsSI("S","T",$B22+273.15,"Q",1,Fluid)/1000 -> 6.570753801 | E22: =[1]!PropsSI("D","T",$B22+273.15,"Q",0,Fluid) -> 680.324951 | F22: =[1]!PropsSI("D","T",$B22+273.15,"Q",1,Fluid) -> 0.9463272923 | G22: 0.001469885822 | H22: 1.056716855 | I22: =[1]!PropsSI("P","T",$B22+273.15,"Q",1,Fluid)/1000 -> 108.2563253 | J22: =[1]!PropsSI("U","T",$B22+273.15,"Q",0,Fluid)/1000 -> 197.6700224 | K22: =[1]!PropsSI("U","T",$B22+273.15,"Q",1,Fluid)/1000 -> 1449.049601
B23: -31 | C23: =[1]!PropsSI("S","T",$B23+273.15,"Q",0,Fluid)/1000 -> 0.9262483869 | D23: =[1]!PropsSI("S","T",$B23+273.15,"Q",1,Fluid)/1000 -> 6.55363248 | E23: =[1]!PropsSI("D","T",$B23+273.15,"Q",0,Fluid) -> 679.0798472 | F23: =[1]!PropsSI("D","T",$B23+273.15,"Q",1,Fluid) -> 0.9910200096 | G23: 0.001472580882 | H23: 1.009061361 | I23: =[1]!PropsSI("P","T",$B23+273.15,"Q",1,Fluid)/1000 -> 113.7315191 | J23: =[1]!PropsSI("U","T",$B23+273.15,"Q",0,Fluid)/1000 -> 202.1231908 | K23: =[1]!PropsSI("U","T",$B23+273.15,"Q",1,Fluid)/1000 -> 1450.199646
B24: -30 | C24: =[1]!PropsSI("S","T",$B24+273.15,"Q",0,Fluid)/1000 -> 0.9446216835 | D24: =[1]!PropsSI("S","T",$B24+273.15,"Q",1,Fluid)/1000 -> 6.536678256 | E24: =[1]!PropsSI("D","T",$B24+273.15,"Q",0,Fluid) -> 677.830997 | F24: =[1]!PropsSI("D","T",$B24+273.15,"Q",1,Fluid) -> 1.037384593 | G24: 0.001475293996 | H24: 0.9639626491 | I24: =[1]!PropsSI("P","T",$B24+273.15,"Q",1,Fluid)/1000 -> 119.4284795 | J24: =[1]!PropsSI("U","T",$B24+273.15,"Q",0,Fluid)/1000 -> 206.5811503 | K24: =[1]!PropsSI("U","T",$B24+273.15,"Q",1,Fluid)/1000 -> 1451.341305
B25: -29 | C25: =[1]!PropsSI("S","T",$B25+273.15,"Q",0,Fluid)/1000 -> 0.9629392018 | D25: =[1]!PropsSI("S","T",$B25+273.15,"Q",1,Fluid)/1000 -> 6.519888169 | E25: =[1]!PropsSI("D","T",$B25+273.15,"Q",0,Fluid) -> 676.5784015 | F25: =[1]!PropsSI("D","T",$B25+273.15,"Q",1,Fluid) -> 1.085466109 | G25: 0.001478025308 | H25: 0.9212632171 | I25: =[1]!PropsSI("P","T",$B25+273.15,"Q",1,Fluid)/1000 -> 125.3537172 | J25: =[1]!PropsSI("U","T",$B25+273.15,"Q",0,Fluid)/1000 -> 211.0438748 | K25: =[1]!PropsSI("U","T",$B25+273.15,"Q",1,Fluid)/1000 -> 1452.474472
B26: -28 | C26: =[1]!PropsSI("S","T",$B26+273.15,"Q",0,Fluid)/1000 -> 0.9812013007 | D26: =[1]!PropsSI("S","T",$B26+273.15,"Q",1,Fluid)/1000 -> 6.503259304 | E26: =[1]!PropsSI("D","T",$B26+273.15,"Q",0,Fluid) -> 675.3220602 | F26: =[1]!PropsSI("D","T",$B26+273.15,"Q",1,Fluid) -> 1.135310347 | G26: 0.001480774965 | H26: 0.8808164237 | I26: =[1]!PropsSI("P","T",$B26+273.15,"Q",1,Fluid)/1000 -> 131.513847 | J26: =[1]!PropsSI("U","T",$B26+273.15,"Q",0,Fluid)/1000 -> 215.5113395 | K26: =[1]!PropsSI("U","T",$B26+273.15,"Q",1,Fluid)/1000 -> 1453.599045
B27: -27 | C27: =[1]!PropsSI("S","T",$B27+273.15,"Q",0,Fluid)/1000 -> 0.9994083411 | D27: =[1]!PropsSI("S","T",$B27+273.15,"Q",1,Fluid)/1000 -> 6.486788798 | E27: =[1]!PropsSI("D","T",$B27+273.15,"Q",0,Fluid) -> 674.0619711 | F27: =[1]!PropsSI("D","T",$B27+273.15,"Q",1,Fluid) -> 1.186963819 | G27: 0.00148354312 | H27: 0.8424856629 | I27: =[1]!PropsSI("P","T",$B27+273.15,"Q",1,Fluid)/1000 -> 137.9155877 | J27: =[1]!PropsSI("U","T",$B27+273.15,"Q",0,Fluid)/1000 -> 219.9835216 | K27: =[1]!PropsSI("U","T",$B27+273.15,"Q",1,Fluid)/1000 -> 1454.714919
B28: -26 | C28: =[1]!PropsSI("S","T",$B28+273.15,"Q",0,Fluid)/1000 -> 1.017560686 | D28: =[1]!PropsSI("S","T",$B28+273.15,"Q",1,Fluid)/1000 -> 6.470473832 | E28: =[1]!PropsSI("D","T",$B28+273.15,"Q",0,Fluid) -> 672.7981307 | F28: =[1]!PropsSI("D","T",$B28+273.15,"Q",1,Fluid) -> 1.240473767 | G28: 0.001486329932 | H28: 0.8061436094 | I28: =[1]!PropsSI("P","T",$B28+273.15,"Q",1,Fluid)/1000 -> 144.5657616 | J28: =[1]!PropsSI("U","T",$B28+273.15,"Q",0,Fluid)/1000 -> 224.4603994 | K28: =[1]!PropsSI("U","T",$B28+273.15,"Q",1,Fluid)/1000 -> 1455.821991
B29: -25 | C29: =[1]!PropsSI("S","T",$B29+273.15,"Q",0,Fluid)/1000 -> 1.035658702 | D29: =[1]!PropsSI("S","T",$B29+273.15,"Q",1,Fluid)/1000 -> 6.454311634 | E29: =[1]!PropsSI("D","T",$B29+273.15,"Q",0,Fluid) -> 671.5305338 | F29: =[1]!PropsSI("D","T",$B29+273.15,"Q",1,Fluid) -> 1.295888172 | G29: 0.001489135564 | H29: 0.7716715235 | I29: =[1]!PropsSI("P","T",$B29+273.15,"Q",1,Fluid)/1000 -> 151.4712936 | J29: =[1]!PropsSI("U","T",$B29+273.15,"Q",0,Fluid)/1000 -> 228.9419532 | K29: =[1]!PropsSI("U","T",$B29+273.15,"Q",1,Fluid)/1000 -> 1456.920156
B30: -24 | C30: =[1]!PropsSI("S","T",$B30+273.15,"Q",0,Fluid)/1000 -> 1.053702756 | D30: =[1]!PropsSI("S","T",$B30+273.15,"Q",1,Fluid)/1000 -> 6.438299476 | E30: =[1]!PropsSI("D","T",$B30+273.15,"Q",0,Fluid) -> 670.2591739 | F30: =[1]!PropsSI("D","T",$B30+273.15,"Q",1,Fluid) -> 1.353255758 | G30: 0.001491960183 | H30: 0.7389586148 | I30: =[1]!PropsSI("P","T",$B30+273.15,"Q",1,Fluid)/1000 -> 158.6392112 | J30: =[1]!PropsSI("U","T",$B30+273.15,"Q",0,Fluid)/1000 -> 233.428165 | K30: =[1]!PropsSI("U","T",$B30+273.15,"Q",1,Fluid)/1000 -> 1458.009309
B31: -23 | C31: =[1]!PropsSI("S","T",$B31+273.15,"Q",0,Fluid)/1000 -> 1.071693221 | D31: =[1]!PropsSI("S","T",$B31+273.15,"Q",1,Fluid)/1000 -> 6.422434677 | E31: =[1]!PropsSI("D","T",$B31+273.15,"Q",0,Fluid) -> 668.9840427 | F31: =[1]!PropsSI("D","T",$B31+273.15,"Q",1,Fluid) -> 1.412625999 | G31: 0.001494803966 | H31: 0.7079014551 | I31: =[1]!PropsSI("P","T",$B31+273.15,"Q",1,Fluid)/1000 -> 166.0766433 | J31: =[1]!PropsSI("U","T",$B31+273.15,"Q",0,Fluid)/1000 -> 237.9190185 | K31: =[1]!PropsSI("U","T",$B31+273.15,"Q",1,Fluid)/1000 -> 1459.089348
B32: -22 | C32: =[1]!PropsSI("S","T",$B32+273.15,"Q",0,Fluid)/1000 -> 1.089630471 | D32: =[1]!PropsSI("S","T",$B32+273.15,"Q",1,Fluid)/1000 -> 6.406714595 | E32: =[1]!PropsSI("D","T",$B32+273.15,"Q",0,Fluid) -> 667.7051304 | F32: =[1]!PropsSI("D","T",$B32+273.15,"Q",1,Fluid) -> 1.474049129 | G32: 0.00149766709 | H32: 0.6784034401 | I32: =[1]!PropsSI("P","T",$B32+273.15,"Q",1,Fluid)/1000 -> 173.79082 | J32: =[1]!PropsSI("U","T",$B32+273.15,"Q",0,Fluid)/1000 -> 242.4144993 | K32: =[1]!PropsSI("U","T",$B32+273.15,"Q",1,Fluid)/1000 -> 1460.160167
B33: -21 | C33: =[1]!PropsSI("S","T",$B33+273.15,"Q",0,Fluid)/1000 -> 1.107514884 | D33: =[1]!PropsSI("S","T",$B33+273.15,"Q",1,Fluid)/1000 -> 6.391136633 | E33: =[1]!PropsSI("D","T",$B33+273.15,"Q",0,Fluid) -> 666.4224257 | F33: =[1]!PropsSI("D","T",$B33+273.15,"Q",1,Fluid) -> 1.537576148 | G33: 0.001500549744 | H33: 0.6503742927 | I33: =[1]!PropsSI("P","T",$B33+273.15,"Q",1,Fluid)/1000 -> 181.7890718 | J33: =[1]!PropsSI("U","T",$B33+273.15,"Q",0,Fluid)/1000 -> 246.9145948 | K33: =[1]!PropsSI("U","T",$B33+273.15,"Q",1,Fluid)/1000 -> 1461.221663
B34: -20 | C34: =[1]!PropsSI("S","T",$B34+273.15,"Q",0,Fluid)/1000 -> 1.12534684 | D34: =[1]!PropsSI("S","T",$B34+273.15,"Q",1,Fluid)/1000 -> 6.375698234 | E34: =[1]!PropsSI("D","T",$B34+273.15,"Q",0,Fluid) -> 665.1359155 | F34: =[1]!PropsSI("D","T",$B34+273.15,"Q",1,Fluid) -> 1.603258832 | G34: 0.001503452117 | H34: 0.6237296064 | I34: =[1]!PropsSI("P","T",$B34+273.15,"Q",1,Fluid)/1000 -> 190.078829 | J34: =[1]!PropsSI("U","T",$B34+273.15,"Q",0,Fluid)/1000 -> 251.4192945 | K34: =[1]!PropsSI("U","T",$B34+273.15,"Q",1,Fluid)/1000 -> 1462.273731
B35: -19 | C35: =[1]!PropsSI("S","T",$B35+273.15,"Q",0,Fluid)/1000 -> 1.143126723 | D35: =[1]!PropsSI("S","T",$B35+273.15,"Q",1,Fluid)/1000 -> 6.360396884 | E35: =[1]!PropsSI("D","T",$B35+273.15,"Q",0,Fluid) -> 663.8455854 | F35: =[1]!PropsSI("D","T",$B35+273.15,"Q",1,Fluid) -> 1.671149737 | G35: 0.001506374407 | H35: 0.5983904241 | I35: =[1]!PropsSI("P","T",$B35+273.15,"Q",1,Fluid)/1000 -> 198.6676209 | J35: =[1]!PropsSI("U","T",$B35+273.15,"Q",0,Fluid)/1000 -> 255.9285897 | K35: =[1]!PropsSI("U","T",$B35+273.15,"Q",1,Fluid)/1000 -> 1463.316267
B36: -18 | C36: =[1]!PropsSI("S","T",$B36+273.15,"Q",0,Fluid)/1000 -> 1.160854922 | D36: =[1]!PropsSI("S","T",$B36+273.15,"Q",1,Fluid)/1000 -> 6.345230105 | E36: =[1]!PropsSI("D","T",$B36+273.15,"Q",0,Fluid) -> 662.5514191 | F36: =[1]!PropsSI("D","T",$B36+273.15,"Q",1,Fluid) -> 1.741302218 | G36: 0.001509316819 | H36: 0.5742828498 | I36: =[1]!PropsSI("P","T",$B36+273.15,"Q",1,Fluid)/1000 -> 207.5630752 | J36: =[1]!PropsSI("U","T",$B36+273.15,"Q",0,Fluid)/1000 -> 260.4424736 | K36: =[1]!PropsSI("U","T",$B36+273.15,"Q",1,Fluid)/1000 -> 1464.349166
B37: -17 | C37: =[1]!PropsSI("S","T",$B37+273.15,"Q",0,Fluid)/1000 -> 1.178531827 | D37: =[1]!PropsSI("S","T",$B37+273.15,"Q",1,Fluid)/1000 -> 6.330195461 | E37: =[1]!PropsSI("D","T",$B37+273.15,"Q",0,Fluid) -> 661.2533988 | F37: =[1]!PropsSI("D","T",$B37+273.15,"Q",1,Fluid) -> 1.813770428 | G37: 0.001512279561 | H37: 0.5513376911 | I37: =[1]!PropsSI("P","T",$B37+273.15,"Q",1,Fluid)/1000 -> 216.7729173 | J37: =[1]!PropsSI("U","T",$B37+273.15,"Q",0,Fluid)/1000 -> 264.9609417 | K37: =[1]!PropsSI("U","T",$B37+273.15,"Q",1,Fluid)/1000 -> 1465.372323
B38: -16 | C38: =[1]!PropsSI("S","T",$B38+273.15,"Q",0,Fluid)/1000 -> 1.196157834 | D38: =[1]!PropsSI("S","T",$B38+273.15,"Q",1,Fluid)/1000 -> 6.31529055 | E38: =[1]!PropsSI("D","T",$B38+273.15,"Q",0,Fluid) -> 659.9515053 | F38: =[1]!PropsSI("D","T",$B38+273.15,"Q",1,Fluid) -> 1.888609337 | G38: 0.001515262852 | H38: 0.5294901282 | I38: =[1]!PropsSI("P","T",$B38+273.15,"Q",1,Fluid)/1000 -> 226.3049694 | J38: =[1]!PropsSI("U","T",$B38+273.15,"Q",0,Fluid)/1000 -> 269.4839913 | K38: =[1]!PropsSI("U","T",$B38+273.15,"Q",1,Fluid)/1000 -> 1466.385633
B39: -15 | C39: =[1]!PropsSI("S","T",$B39+273.15,"Q",0,Fluid)/1000 -> 1.213733342 | D39: =[1]!PropsSI("S","T",$B39+273.15,"Q",1,Fluid)/1000 -> 6.300513012 | E39: =[1]!PropsSI("D","T",$B39+273.15,"Q",0,Fluid) -> 658.6457174 | F39: =[1]!PropsSI("D","T",$B39+273.15,"Q",1,Fluid) -> 1.965874739 | G39: 0.001518266913 | H39: 0.5086794089 | I39: =[1]!PropsSI("P","T",$B39+273.15,"Q",1,Fluid)/1000 -> 236.16715 | J39: =[1]!PropsSI("U","T",$B39+273.15,"Q",0,Fluid)/1000 -> 274.011622 | K39: =[1]!PropsSI("U","T",$B39+273.15,"Q",1,Fluid)/1000 -> 1467.388992
B40: -14 | C40: =[1]!PropsSI("S","T",$B40+273.15,"Q",0,Fluid)/1000 -> 1.231258752 | D40: =[1]!PropsSI("S","T",$B40+273.15,"Q",1,Fluid)/1000 -> 6.285860519 | E40: =[1]!PropsSI("D","T",$B40+273.15,"Q",0,Fluid) -> 657.3360125 | F40: =[1]!PropsSI("D","T",$B40+273.15,"Q",1,Fluid) -> 2.045623263 | G40: 0.001521291974 | H40: 0.4888485666 | I40: =[1]!PropsSI("P","T",$B40+273.15,"Q",1,Fluid)/1000 -> 246.3674728 | J40: =[1]!PropsSI("U","T",$B40+273.15,"Q",0,Fluid)/1000 -> 278.5438355 | K40: =[1]!PropsSI("U","T",$B40+273.15,"Q",1,Fluid)/1000 -> 1468.382294
B41: -13 | C41: =[1]!PropsSI("S","T",$B41+273.15,"Q",0,Fluid)/1000 -> 1.248734472 | D41: =[1]!PropsSI("S","T",$B41+273.15,"Q",1,Fluid)/1000 -> 6.27133078 | E41: =[1]!PropsSI("D","T",$B41+273.15,"Q",0,Fluid) -> 656.0223663 | F41: =[1]!PropsSI("D","T",$B41+273.15,"Q",1,Fluid) -> 2.12791239 | G41: 0.001524338272 | H41: 0.4699441598 | I41: =[1]!PropsSI("P","T",$B41+273.15,"Q",1,Fluid)/1000 -> 256.9140461 | J41: =[1]!PropsSI("U","T",$B41+273.15,"Q",0,Fluid)/1000 -> 283.0806355 | K41: =[1]!PropsSI("U","T",$B41+273.15,"Q",1,Fluid)/1000 -> 1469.365433
B42: -12 | C42: =[1]!PropsSI("S","T",$B42+273.15,"Q",0,Fluid)/1000 -> 1.266160911 | D42: =[1]!PropsSI("S","T",$B42+273.15,"Q",1,Fluid)/1000 -> 6.256921539 | E42: =[1]!PropsSI("D","T",$B42+273.15,"Q",0,Fluid) -> 654.7047528 | F42: =[1]!PropsSI("D","T",$B42+273.15,"Q",1,Fluid) -> 2.21280046 | G42: 0.00152740605 | H42: 0.4519160305 | I42: =[1]!PropsSI("P","T",$B42+273.15,"Q",1,Fluid)/1000 -> 267.815072 | J42: =[1]!PropsSI("U","T",$B42+273.15,"Q",0,Fluid)/1000 -> 287.622028 | K42: =[1]!PropsSI("U","T",$B42+273.15,"Q",1,Fluid)/1000 -> 1470.338304
B43: -11 | C43: =[1]!PropsSI("S","T",$B43+273.15,"Q",0,Fluid)/1000 -> 1.283538484 | D43: =[1]!PropsSI("S","T",$B43+273.15,"Q",1,Fluid)/1000 -> 6.242630573 | E43: =[1]!PropsSI("D","T",$B43+273.15,"Q",0,Fluid) -> 653.3831443 | F43: =[1]!PropsSI("D","T",$B43+273.15,"Q",1,Fluid) -> 2.300346689 | G43: 0.001530495558 | H43: 0.4347170819 | I43: =[1]!PropsSI("P","T",$B43+273.15,"Q",1,Fluid)/1000 -> 279.0788455 | J43: =[1]!PropsSI("U","T",$B43+273.15,"Q",0,Fluid)/1000 -> 292.1680212 | K43: =[1]!PropsSI("U","T",$B43+273.15,"Q",1,Fluid)/1000 -> 1471.3008
B44: -10 | C44: =[1]!PropsSI("S","T",$B44+273.15,"Q",0,Fluid)/1000 -> 1.30086761 | D44: =[1]!PropsSI("S","T",$B44+273.15,"Q",1,Fluid)/1000 -> 6.228455691 | E44: =[1]!PropsSI("D","T",$B44+273.15,"Q",0,Fluid) -> 652.0575117 | F44: =[1]!PropsSI("D","T",$B44+273.15,"Q",1,Fluid) -> 2.390611185 | G44: 0.001533607055 | H44: 0.4183030709 | I44: =[1]!PropsSI("P","T",$B44+273.15,"Q",1,Fluid)/1000 -> 290.7137539 | J44: =[1]!PropsSI("U","T",$B44+273.15,"Q",0,Fluid)/1000 -> 296.7186257 | K44: =[1]!PropsSI("U","T",$B44+273.15,"Q",1,Fluid)/1000 -> 1472.252814
B45: -9 | C45: =[1]!PropsSI("S","T",$B45+273.15,"Q",0,Fluid)/1000 -> 1.31814871 | D45: =[1]!PropsSI("S","T",$B45+273.15,"Q",1,Fluid)/1000 -> 6.214394736 | E45: =[1]!PropsSI("D","T",$B45+273.15,"Q",0,Fluid) -> 650.7278238 | F45: =[1]!PropsSI("D","T",$B45+273.15,"Q",1,Fluid) -> 2.483654958 | G45: 0.001536740805 | H45: 0.4026324175 | I45: =[1]!PropsSI("P","T",$B45+273.15,"Q",1,Fluid)/1000 -> 302.7282757 | J45: =[1]!PropsSI("U","T",$B45+273.15,"Q",0,Fluid)/1000 -> 301.273854 | K45: =[1]!PropsSI("U","T",$B45+273.15,"Q",1,Fluid)/1000 -> 1473.194239
B46: -8 | C46: =[1]!PropsSI("S","T",$B46+273.15,"Q",0,Fluid)/1000 -> 1.335382212 | D46: =[1]!PropsSI("S","T",$B46+273.15,"Q",1,Fluid)/1000 -> 6.200445582 | E46: =[1]!PropsSI("D","T",$B46+273.15,"Q",0,Fluid) -> 649.394048 | F46: =[1]!PropsSI("D","T",$B46+273.15,"Q",1,Fluid) -> 2.57953994 | G46: 0.001539897083 | H46: 0.3876660269 | I46: =[1]!PropsSI("P","T",$B46+273.15,"Q",1,Fluid)/1000 -> 315.1309798 | J46: =[1]!PropsSI("U","T",$B46+273.15,"Q",0,Fluid)/1000 -> 305.8337213 | K46: =[1]!PropsSI("U","T",$B46+273.15,"Q",1,Fluid)/1000 -> 1474.124968
B47: -7 | C47: =[1]!PropsSI("S","T",$B47+273.15,"Q",0,Fluid)/1000 -> 1.352568546 | D47: =[1]!PropsSI("S","T",$B47+273.15,"Q",1,Fluid)/1000 -> 6.186606131 | E47: =[1]!PropsSI("D","T",$B47+273.15,"Q",0,Fluid) -> 648.0561499 | F47: =[1]!PropsSI("D","T",$B47+273.15,"Q",1,Fluid) -> 2.678329002 | G47: 0.001543076167 | H47: 0.3733671253 | I47: =[1]!PropsSI("P","T",$B47+273.15,"Q",1,Fluid)/1000 -> 327.9305248 | J47: =[1]!PropsSI("U","T",$B47+273.15,"Q",0,Fluid)/1000 -> 310.3982449 | K47: =[1]!PropsSI("U","T",$B47+273.15,"Q",1,Fluid)/1000 -> 1475.044893
B48: -6 | C48: =[1]!PropsSI("S","T",$B48+273.15,"Q",0,Fluid)/1000 -> 1.369708147 | D48: =[1]!PropsSI("S","T",$B48+273.15,"Q",1,Fluid)/1000 -> 6.172874319 | E48: =[1]!PropsSI("D","T",$B48+273.15,"Q",0,Fluid) -> 646.7140933 | F48: =[1]!PropsSI("D","T",$B48+273.15,"Q",1,Fluid) -> 2.780085967 | G48: 0.001546278348 | H48: 0.359701107 | I48: =[1]!PropsSI("P","T",$B48+273.15,"Q",1,Fluid)/1000 -> 341.1356581 | J48: =[1]!PropsSI("U","T",$B48+273.15,"Q",0,Fluid)/1000 -> 314.9674444 | K48: =[1]!PropsSI("U","T",$B48+273.15,"Q",1,Fluid)/1000 -> 1475.953904
B49: -5 | C49: =[1]!PropsSI("S","T",$B49+273.15,"Q",0,Fluid)/1000 -> 1.386801453 | D49: =[1]!PropsSI("S","T",$B49+273.15,"Q",1,Fluid)/1000 -> 6.159248106 | E49: =[1]!PropsSI("D","T",$B49+273.15,"Q",0,Fluid) -> 645.3678403 | F49: =[1]!PropsSI("D","T",$B49+273.15,"Q",1,Fluid) -> 2.884875634 | G49: 0.001549503923 | H49: 0.3466353932 | I49: =[1]!PropsSI("P","T",$B49+273.15,"Q",1,Fluid)/1000 -> 354.7552151 | J49: =[1]!PropsSI("U","T",$B49+273.15,"Q",0,Fluid)/1000 -> 319.5413419 | K49: =[1]!PropsSI("U","T",$B49+273.15,"Q",1,Fluid)/1000 -> 1476.851893
B50: -4 | C50: =[1]!PropsSI("S","T",$B50+273.15,"Q",0,Fluid)/1000 -> 1.40384891 | D50: =[1]!PropsSI("S","T",$B50+273.15,"Q",1,Fluid)/1000 -> 6.145725484 | E50: =[1]!PropsSI("D","T",$B50+273.15,"Q",0,Fluid) -> 644.0173513 | F50: =[1]!PropsSI("D","T",$B50+273.15,"Q",1,Fluid) -> 2.992763794 | G50: 0.001552753195 | H50: 0.3341393003 | I50: =[1]!PropsSI("P","T",$B50+273.15,"Q",1,Fluid)/1000 -> 368.7981182 | J50: =[1]!PropsSI("U","T",$B50+273.15,"Q",0,Fluid)/1000 -> 324.1199618 | K50: =[1]!PropsSI("U","T",$B50+273.15,"Q",1,Fluid)/1000 -> 1477.738749
B51: -3 | C51: =[1]!PropsSI("S","T",$B51+273.15,"Q",0,Fluid)/1000 -> 1.420850964 | D51: =[1]!PropsSI("S","T",$B51+273.15,"Q",1,Fluid)/1000 -> 6.132304471 | E51: =[1]!PropsSI("D","T",$B51+273.15,"Q",0,Fluid) -> 642.6625849 | F51: =[1]!PropsSI("D","T",$B51+273.15,"Q",1,Fluid) -> 3.103817248 | G51: 0.00155602648 | H51: 0.3221839174 | I51: =[1]!PropsSI("P","T",$B51+273.15,"Q",1,Fluid)/1000 -> 383.2733759 | J51: =[1]!PropsSI("U","T",$B51+273.15,"Q",0,Fluid)/1000 -> 328.7033311 | K51: =[1]!PropsSI("U","T",$B51+273.15,"Q",1,Fluid)/1000 -> 1478.614362
B52: -2 | C52: =[1]!PropsSI("S","T",$B52+273.15,"Q",0,Fluid)/1000 -> 1.437808067 | D52: =[1]!PropsSI("S","T",$B52+273.15,"Q",1,Fluid)/1000 -> 6.118983111 | E52: =[1]!PropsSI("D","T",$B52+273.15,"Q",0,Fluid) -> 641.3034978 | F52: =[1]!PropsSI("D","T",$B52+273.15,"Q",1,Fluid) -> 3.218103836 | G52: 0.001559324101 | H52: 0.3107419931 | I52: =[1]!PropsSI("P","T",$B52+273.15,"Q",1,Fluid)/1000 -> 398.1900823 | J52: =[1]!PropsSI("U","T",$B52+273.15,"Q",0,Fluid)/1000 -> 333.2914791 | K52: =[1]!PropsSI("U","T",$B52+273.15,"Q",1,Fluid)/1000 -> 1479.47862
B53: -1 | C53: =[1]!PropsSI("S","T",$B53+273.15,"Q",0,Fluid)/1000 -> 1.454720677 | D53: =[1]!PropsSI("S","T",$B53+273.15,"Q",1,Fluid)/1000 -> 6.105759475 | E53: =[1]!PropsSI("D","T",$B53+273.15,"Q",0,Fluid) -> 639.9400451 | F53: =[1]!PropsSI("D","T",$B53+273.15,"Q",1,Fluid) -> 3.335692449 | G53: 0.001562646388 | H53: 0.2997878297 | I53: =[1]!PropsSI("P","T",$B53+273.15,"Q",1,Fluid)/1000 -> 413.5574161 | J53: =[1]!PropsSI("U","T",$B53+273.15,"Q",0,Fluid)/1000 -> 337.8844375 | K53: =[1]!PropsSI("U","T",$B53+273.15,"Q",1,Fluid)/1000 -> 1480.33141
B54: 0 | C54: =[1]!PropsSI("S","T",$B54+273.15,"Q",0,Fluid)/1000 -> 1.471589254 | D54: =[1]!PropsSI("S","T",$B54+273.15,"Q",1,Fluid)/1000 -> 6.092631659 | E54: =[1]!PropsSI("D","T",$B54+273.15,"Q",0,Fluid) -> 638.5721798 | F54: =[1]!PropsSI("D","T",$B54+273.15,"Q",1,Fluid) -> 3.456653062 | G54: 0.001565993683 | H54: 0.2892971849 | I54: =[1]!PropsSI("P","T",$B54+273.15,"Q",1,Fluid)/1000 -> 429.3846393 | J54: =[1]!PropsSI("U","T",$B54+273.15,"Q",0,Fluid)/1000 -> 342.4822406 | K54: =[1]!PropsSI("U","T",$B54+273.15,"Q",1,Fluid)/1000 -> 1481.17262
B55: 1 | C55: =[1]!PropsSI("S","T",$B55+273.15,"Q",0,Fluid)/1000 -> 1.488414264 | D55: =[1]!PropsSI("S","T",$B55+273.15,"Q",1,Fluid)/1000 -> 6.079597781 | E55: =[1]!PropsSI("D","T",$B55+273.15,"Q",0,Fluid) -> 637.1998533 | F55: =[1]!PropsSI("D","T",$B55+273.15,"Q",1,Fluid) -> 3.581056751 | G55: 0.001569366338 | H55: 0.2792471802 | I55: =[1]!PropsSI("P","T",$B55+273.15,"Q",1,Fluid)/1000 -> 445.6810972 | J55: =[1]!PropsSI("U","T",$B55+273.15,"Q",0,Fluid)/1000 -> 347.0849254 | K55: =[1]!PropsSI("U","T",$B55+273.15,"Q",1,Fluid)/1000 -> 1482.002134
B56: 2 | C56: =[1]!PropsSI("S","T",$B56+273.15,"Q",0,Fluid)/1000 -> 1.505196176 | D56: =[1]!PropsSI("S","T",$B56+273.15,"Q",1,Fluid)/1000 -> 6.066655985 | E56: =[1]!PropsSI("D","T",$B56+273.15,"Q",0,Fluid) -> 635.8230149 | F56: =[1]!PropsSI("D","T",$B56+273.15,"Q",1,Fluid) -> 3.708975722 | G56: 0.001572764711 | H56: 0.2696162162 | I56: =[1]!PropsSI("P","T",$B56+273.15,"Q",1,Fluid)/1000 -> 462.4562169 | J56: =[1]!PropsSI("U","T",$B56+273.15,"Q",0,Fluid)/1000 -> 351.692531 | K56: =[1]!PropsSI("U","T",$B56+273.15,"Q",1,Fluid)/1000 -> 1482.819837
B57: 3 | C57: =[1]!PropsSI("S","T",$B57+273.15,"Q",0,Fluid)/1000 -> 1.521935465 | D57: =[1]!PropsSI("S","T",$B57+273.15,"Q",1,Fluid)/1000 -> 6.053804438 | E57: =[1]!PropsSI("D","T",$B57+273.15,"Q",0,Fluid) -> 634.4416121 | F57: =[1]!PropsSI("D","T",$B57+273.15,"Q",1,Fluid) -> 3.840483336 | G57: 0.001576189173 | H57: 0.2603838925 | I57: =[1]!PropsSI("P","T",$B57+273.15,"Q",1,Fluid)/1000 -> 479.7195068 | J57: =[1]!PropsSI("U","T",$B57+273.15,"Q",0,Fluid)/1000 -> 356.3050995 | K57: =[1]!PropsSI("U","T",$B57+273.15,"Q",1,Fluid)/1000 -> 1483.625613
B58: 4 | C58: =[1]!PropsSI("S","T",$B58+273.15,"Q",0,Fluid)/1000 -> 1.538632612 | D58: =[1]!PropsSI("S","T",$B58+273.15,"Q",1,Fluid)/1000 -> 6.041041328 | E58: =[1]!PropsSI("D","T",$B58+273.15,"Q",0,Fluid) -> 633.0555905 | F58: =[1]!PropsSI("D","T",$B58+273.15,"Q",1,Fluid) -> 3.97565414 | G58: 0.001579640106 | H58: 0.2515309342 | I58: =[1]!PropsSI("P","T",$B58+273.15,"Q",1,Fluid)/1000 -> 497.4805554 | J58: =[1]!PropsSI("U","T",$B58+273.15,"Q",0,Fluid)/1000 -> 360.9226755 | K58: =[1]!PropsSI("U","T",$B58+273.15,"Q",1,Fluid)/1000 -> 1484.419343
B59: 5 | C59: =[1]!PropsSI("S","T",$B59+273.15,"Q",0,Fluid)/1000 -> 1.555288099 | D59: =[1]!PropsSI("S","T",$B59+273.15,"Q",1,Fluid)/1000 -> 6.028364863 | E59: =[1]!PropsSI("D","T",$B59+273.15,"Q",0,Fluid) -> 631.6648937 | F59: =[1]!PropsSI("D","T",$B59+273.15,"Q",1,Fluid) -> 4.114563894 | G59: 0.0015831179 | H59: 0.2430391229 | I59: =[1]!PropsSI("P","T",$B59+273.15,"Q",1,Fluid)/1000 -> 515.7490312 | J59: =[1]!PropsSI("U","T",$B59+273.15,"Q",0,Fluid)/1000 -> 365.5453062 | K59: =[1]!PropsSI("U","T",$B59+273.15,"Q",1,Fluid)/1000 -> 1485.200908
B60: 6 | C60: =[1]!PropsSI("S","T",$B60+273.15,"Q",0,Fluid)/1000 -> 1.571902414 | D60: =[1]!PropsSI("S","T",$B60+273.15,"Q",1,Fluid)/1000 -> 6.015773275 | E60: =[1]!PropsSI("D","T",$B60+273.15,"Q",0,Fluid) -> 630.2694634 | F60: =[1]!PropsSI("D","T",$B60+273.15,"Q",1,Fluid) -> 4.257289599 | G60: 0.001586622957 | H60: 0.2348912323 | I60: =[1]!PropsSI("P","T",$B60+273.15,"Q",1,Fluid)/1000 -> 534.5346812 | J60: =[1]!PropsSI("U","T",$B60+273.15,"Q",0,Fluid)/1000 -> 370.1730414 | K60: =[1]!PropsSI("U","T",$B60+273.15,"Q",1,Fluid)/1000 -> 1485.970187
B61: 7 | C61: =[1]!PropsSI("S","T",$B61+273.15,"Q",0,Fluid)/1000 -> 1.588476053 | D61: =[1]!PropsSI("S","T",$B61+273.15,"Q",1,Fluid)/1000 -> 6.003264813 | E61: =[1]!PropsSI("D","T",$B61+273.15,"Q",0,Fluid) -> 628.8692391 | F61: =[1]!PropsSI("D","T",$B61+273.15,"Q",1,Fluid) -> 4.403909535 | G61: 0.001590155692 | H61: 0.2270709678 | I61: =[1]!PropsSI("P","T",$B61+273.15,"Q",1,Fluid)/1000 -> 553.8473304 | J61: =[1]!PropsSI("U","T",$B61+273.15,"Q",0,Fluid)/1000 -> 374.8059337 | K61: =[1]!PropsSI("U","T",$B61+273.15,"Q",1,Fluid)/1000 -> 1486.727059
B62: 8 | C62: =[1]!PropsSI("S","T",$B62+273.15,"Q",0,Fluid)/1000 -> 1.605009513 | D62: =[1]!PropsSI("S","T",$B62+273.15,"Q",1,Fluid)/1000 -> 5.990837746 | E62: =[1]!PropsSI("D","T",$B62+273.15,"Q",0,Fluid) -> 627.4641583 | F62: =[1]!PropsSI("D","T",$B62+273.15,"Q",1,Fluid) -> 4.554503289 | G62: 0.001593716528 | H62: 0.2195629109 | I62: =[1]!PropsSI("P","T",$B62+273.15,"Q",1,Fluid)/1000 -> 573.6968812 | J62: =[1]!PropsSI("U","T",$B62+273.15,"Q",0,Fluid)/1000 -> 379.4440384 | K62: =[1]!PropsSI("U","T",$B62+273.15,"Q",1,Fluid)/1000 -> 1487.471399
B63: 9 | C63: =[1]!PropsSI("S","T",$B63+273.15,"Q",0,Fluid)/1000 -> 1.621503297 | D63: =[1]!PropsSI("S","T",$B63+273.15,"Q",1,Fluid)/1000 -> 5.978490362 | E63: =[1]!PropsSI("D","T",$B63+273.15,"Q",0,Fluid) -> 626.0541566 | F63: =[1]!PropsSI("D","T",$B63+273.15,"Q",1,Fluid) -> 4.709151795 | G63: 0.001597305903 | H63: 0.2123524668 | I63: =[1]!PropsSI("P","T",$B63+273.15,"Q",1,Fluid)/1000 -> 594.0933123 | J63: =[1]!PropsSI("U","T",$B63+273.15,"Q",0,Fluid)/1000 -> 384.0874137 | K63: =[1]!PropsSI("U","T",$B63+273.15,"Q",1,Fluid)/1000 -> 1488.203083
B64: 10 | C64: =[1]!PropsSI("S","T",$B64+273.15,"Q",0,Fluid)/1000 -> 1.637957913 | D64: =[1]!PropsSI("S","T",$B64+273.15,"Q",1,Fluid)/1000 -> 5.966220965 | E64: =[1]!PropsSI("D","T",$B64+273.15,"Q",0,Fluid) -> 624.6391673 | F64: =[1]!PropsSI("D","T",$B64+273.15,"Q",1,Fluid) -> 4.867937366 | G64: 0.001600924265 | H64: 0.2054258149 | I64: =[1]!PropsSI("P","T",$B64+273.15,"Q",1,Fluid)/1000 -> 615.0466782 | J64: =[1]!PropsSI("U","T",$B64+273.15,"Q",0,Fluid)/1000 -> 388.7361204 | K64: =[1]!PropsSI("U","T",$B64+273.15,"Q",1,Fluid)/1000 -> 1488.921981
B65: 11 | C65: =[1]!PropsSI("S","T",$B65+273.15,"Q",0,Fluid)/1000 -> 1.654373876 | D65: =[1]!PropsSI("S","T",$B65+273.15,"Q",1,Fluid)/1000 -> 5.954027876 | E65: =[1]!PropsSI("D","T",$B65+273.15,"Q",0,Fluid) -> 623.2191215 | F65: =[1]!PropsSI("D","T",$B65+273.15,"Q",1,Fluid) -> 5.030943733 | G65: 0.001604572077 | H65: 0.1987698637 | I65: =[1]!PropsSI("P","T",$B65+273.15,"Q",1,Fluid)/1000 -> 636.5671085 | J65: =[1]!PropsSI("U","T",$B65+273.15,"Q",0,Fluid)/1000 -> 393.3902222 | K65: =[1]!PropsSI("U","T",$B65+273.15,"Q",1,Fluid)/1000 -> 1489.627967
B66: 12 | C66: =[1]!PropsSI("S","T",$B66+273.15,"Q",0,Fluid)/1000 -> 1.670751703 | D66: =[1]!PropsSI("S","T",$B66+273.15,"Q",1,Fluid)/1000 -> 5.941909435 | E66: =[1]!PropsSI("D","T",$B66+273.15,"Q",0,Fluid) -> 621.7939484 | F66: =[1]!PropsSI("D","T",$B66+273.15,"Q",1,Fluid) -> 5.198256091 | G66: 0.001608249811 | H66: 0.1923722076 | I66: =[1]!PropsSI("P","T",$B66+273.15,"Q",1,Fluid)/1000 -> 658.6648068 | J66: =[1]!PropsSI("U","T",$B66+273.15,"Q",0,Fluid)/1000 -> 398.0497859 | K66: =[1]!PropsSI("U","T",$B66+273.15,"Q",1,Fluid)/1000 -> 1490.320908
B67: 13 | C67: =[1]!PropsSI("S","T",$B67+273.15,"Q",0,Fluid)/1000 -> 1.687091918 | D67: =[1]!PropsSI("S","T",$B67+273.15,"Q",1,Fluid)/1000 -> 5.929863994 | E67: =[1]!PropsSI("D","T",$B67+273.15,"Q",0,Fluid) -> 620.3635745 | F67: =[1]!PropsSI("D","T",$B67+273.15,"Q",1,Fluid) -> 5.369961131 | G67: 0.001611957957 | H67: 0.1862210872 | I67: =[1]!PropsSI("P","T",$B67+273.15,"Q",1,Fluid)/1000 -> 681.3500508 | J67: =[1]!PropsSI("U","T",$B67+273.15,"Q",0,Fluid)/1000 -> 402.7148808 | K67: =[1]!PropsSI("U","T",$B67+273.15,"Q",1,Fluid)/1000 -> 1491.000671
B68: 14 | C68: =[1]!PropsSI("S","T",$B68+273.15,"Q",0,Fluid)/1000 -> 1.70339505 | D68: =[1]!PropsSI("S","T",$B68+273.15,"Q",1,Fluid)/1000 -> 5.917889921 | E68: =[1]!PropsSI("D","T",$B68+273.15,"Q",0,Fluid) -> 618.9279245 | F68: =[1]!PropsSI("D","T",$B68+273.15,"Q",1,Fluid) -> 5.546147093 | G68: 0.001615697015 | H68: 0.1803053513 | I68: =[1]!PropsSI("P","T",$B68+273.15,"Q",1,Fluid)/1000 -> 704.6331907 | J68: =[1]!PropsSI("U","T",$B68+273.15,"Q",0,Fluid)/1000 -> 407.3855796 | K68: =[1]!PropsSI("U","T",$B68+273.15,"Q",1,Fluid)/1000 -> 1491.667121
B69: 15 | C69: =[1]!PropsSI("S","T",$B69+273.15,"Q",0,Fluid)/1000 -> 1.719661634 | D69: =[1]!PropsSI("S","T",$B69+273.15,"Q",1,Fluid)/1000 -> 5.905985598 | E69: =[1]!PropsSI("D","T",$B69+273.15,"Q",0,Fluid) -> 617.4869203 | F69: =[1]!PropsSI("D","T",$B69+273.15,"Q",1,Fluid) -> 5.726903807 | G69: =IF(E69<>0,1/E69,"") -> 0.001619467501 | H69: =IF(F69<>0,1/F69,"") -> 0.1746144223 | I69: =[1]!PropsSI("P","T",$B69+273.15,"Q",1,Fluid)/1000 -> 728.5246492 | J69: =[1]!PropsSI("U","T",$B69+273.15,"Q",0,Fluid)/1000 -> 412.0619578 | K69: =[1]!PropsSI("U","T",$B69+273.15,"Q",1,Fluid)/1000 -> 1492.320119
B70: 16 | C70: =[1]!PropsSI("S","T",$B70+273.15,"Q",0,Fluid)/1000 -> 1.73589221 | D70: =[1]!PropsSI("S","T",$B70+273.15,"Q",1,Fluid)/1000 -> 5.89414942 | E70: =[1]!PropsSI("D","T",$B70+273.15,"Q",0,Fluid) -> 616.0404819 | F70: =[1]!PropsSI("D","T",$B70+273.15,"Q",1,Fluid) -> 5.912322741 | G70: 0.001623269946 | H70: 0.1691382632 | I70: =[1]!PropsSI("P","T",$B70+273.15,"Q",1,Fluid)/1000 -> 753.0349209 | J70: =[1]!PropsSI("U","T",$B70+273.15,"Q",0,Fluid)/1000 -> 416.744094 | K70: =[1]!PropsSI("U","T",$B70+273.15,"Q",1,Fluid)/1000 -> 1492.959527
B71: 17 | C71: =[1]!PropsSI("S","T",$B71+273.15,"Q",0,Fluid)/1000 -> 1.752087324 | D71: =[1]!PropsSI("S","T",$B71+273.15,"Q",1,Fluid)/1000 -> 5.882379795 | E71: =[1]!PropsSI("D","T",$B71+273.15,"Q",0,Fluid) -> 614.5885264 | F71: =[1]!PropsSI("D","T",$B71+273.15,"Q",1,Fluid) -> 6.102497052 | G71: 0.001627104896 | H71: 0.1638673467 | I71: =[1]!PropsSI("P","T",$B71+273.15,"Q",1,Fluid)/1000 -> 778.1745713 | J71: =[1]!PropsSI("U","T",$B71+273.15,"Q",0,Fluid)/1000 -> 421.43207 | K71: =[1]!PropsSI("U","T",$B71+273.15,"Q",1,Fluid)/1000 -> 1493.5852
B72: 18 | C72: =[1]!PropsSI("S","T",$B72+273.15,"Q",0,Fluid)/1000 -> 1.768247528 | D72: =[1]!PropsSI("S","T",$B72+273.15,"Q",1,Fluid)/1000 -> 5.870675141 | E72: =[1]!PropsSI("D","T",$B72+273.15,"Q",0,Fluid) -> 613.1309687 | F72: =[1]!PropsSI("D","T",$B72+273.15,"Q",1,Fluid) -> 6.297521641 | G72: 0.00163097291 | H72: 0.1587926262 | I72: =[1]!PropsSI("P","T",$B72+273.15,"Q",1,Fluid)/1000 -> 803.9542363 | J72: =[1]!PropsSI("U","T",$B72+273.15,"Q",0,Fluid)/1000 -> 426.1259705 | K72: =[1]!PropsSI("U","T",$B72+273.15,"Q",1,Fluid)/1000 -> 1494.196993
B73: 19 | C73: =[1]!PropsSI("S","T",$B73+273.15,"Q",0,Fluid)/1000 -> 1.784373378 | D73: =[1]!PropsSI("S","T",$B73+273.15,"Q",1,Fluid)/1000 -> 5.859033889 | E73: =[1]!PropsSI("D","T",$B73+273.15,"Q",0,Fluid) -> 611.6677212 | F73: =[1]!PropsSI("D","T",$B73+273.15,"Q",1,Fluid) -> 6.497493203 | G73: 0.001634874566 | H73: 0.1539055092 | I73: =[1]!PropsSI("P","T",$B73+273.15,"Q",1,Fluid)/1000 -> 830.3846221 | J73: =[1]!PropsSI("U","T",$B73+273.15,"Q",0,Fluid)/1000 -> 430.8258836 | K73: =[1]!PropsSI("U","T",$B73+273.15,"Q",1,Fluid)/1000 -> 1494.794758
B74: 20 | C74: =[1]!PropsSI("S","T",$B74+273.15,"Q",0,Fluid)/1000 -> 1.800465439 | D74: =[1]!PropsSI("S","T",$B74+273.15,"Q",1,Fluid)/1000 -> 5.847454478 | E74: =[1]!PropsSI("D","T",$B74+273.15,"Q",0,Fluid) -> 610.1986934 | F74: =[1]!PropsSI("D","T",$B74+273.15,"Q",1,Fluid) -> 6.702510287 | G74: 0.001638810458 | H74: 0.1491978314 | I74: =[1]!PropsSI("P","T",$B74+273.15,"Q",1,Fluid)/1000 -> 857.4765043 | J74: =[1]!PropsSI("U","T",$B74+273.15,"Q",0,Fluid)/1000 -> 435.5319009 | K74: =[1]!PropsSI("U","T",$B74+273.15,"Q",1,Fluid)/1000 -> 1495.378344
B75: 21 | C75: =[1]!PropsSI("S","T",$B75+273.15,"Q",0,Fluid)/1000 -> 1.816524279 | D75: =[1]!PropsSI("S","T",$B75+273.15,"Q",1,Fluid)/1000 -> 5.835935359 | E75: =[1]!PropsSI("D","T",$B75+273.15,"Q",0,Fluid) -> 608.7237925 | F75: =[1]!PropsSI("D","T",$B75+273.15,"Q",1,Fluid) -> 6.912673358 | G75: 0.001642781196 | H75: 0.1446618332 | I75: =[1]!PropsSI("P","T",$B75+273.15,"Q",1,Fluid)/1000 -> 885.2407273 | J75: =[1]!PropsSI("U","T",$B75+273.15,"Q",0,Fluid)/1000 -> 440.2441169 | K75: =[1]!PropsSI("U","T",$B75+273.15,"Q",1,Fluid)/1000 -> 1495.947596
B76: 22 | C76: =[1]!PropsSI("S","T",$B76+273.15,"Q",0,Fluid)/1000 -> 1.832550476 | D76: =[1]!PropsSI("S","T",$B76+273.15,"Q",1,Fluid)/1000 -> 5.824474989 | E76: =[1]!PropsSI("D","T",$B76+273.15,"Q",0,Fluid) -> 607.2429227 | F76: =[1]!PropsSI("D","T",$B76+273.15,"Q",1,Fluid) -> 7.128084855 | G76: 0.00164678741 | H76: 0.1402901369 | I76: =[1]!PropsSI("P","T",$B76+273.15,"Q",1,Fluid)/1000 -> 913.6882043 | J76: =[1]!PropsSI("U","T",$B76+273.15,"Q",0,Fluid)/1000 -> 444.9626298 | K76: =[1]!PropsSI("U","T",$B76+273.15,"Q",1,Fluid)/1000 -> 1496.502357
B77: 23 | C77: =[1]!PropsSI("S","T",$B77+273.15,"Q",0,Fluid)/1000 -> 1.848544612 | D77: =[1]!PropsSI("S","T",$B77+273.15,"Q",1,Fluid)/1000 -> 5.813071835 | E77: =[1]!PropsSI("D","T",$B77+273.15,"Q",0,Fluid) -> 605.7559855 | F77: =[1]!PropsSI("D","T",$B77+273.15,"Q",1,Fluid) -> 7.348849261 | G77: 0.001650829747 | H77: 0.1360757262 | I77: =[1]!PropsSI("P","T",$B77+273.15,"Q",1,Fluid)/1000 -> 942.8299165 | J77: =[1]!PropsSI("U","T",$B77+273.15,"Q",0,Fluid)/1000 -> 449.6875411 | K77: =[1]!PropsSI("U","T",$B77+273.15,"Q",1,Fluid)/1000 -> 1497.042464
B78: 24 | C78: =[1]!PropsSI("S","T",$B78+273.15,"Q",0,Fluid)/1000 -> 1.864507275 | D78: =[1]!PropsSI("S","T",$B78+273.15,"Q",1,Fluid)/1000 -> 5.801724369 | E78: =[1]!PropsSI("D","T",$B78+273.15,"Q",0,Fluid) -> 604.2628795 | F78: =[1]!PropsSI("D","T",$B78+273.15,"Q",1,Fluid) -> 7.575073171 | G78: 0.001654908871 | H78: 0.1320119261 | I78: =[1]!PropsSI("P","T",$B78+273.15,"Q",1,Fluid)/1000 -> 972.6769129 | J78: =[1]!PropsSI("U","T",$B78+273.15,"Q",0,Fluid)/1000 -> 454.4189561 | K78: =[1]!PropsSI("U","T",$B78+273.15,"Q",1,Fluid)/1000 -> 1497.567754
B79: 25 | C79: =[1]!PropsSI("S","T",$B79+273.15,"Q",0,Fluid)/1000 -> 1.880439063 | D79: =[1]!PropsSI("S","T",$B79+273.15,"Q",1,Fluid)/1000 -> 5.790431072 | E79: =[1]!PropsSI("D","T",$B79+273.15,"Q",0,Fluid) -> 602.7635004 | F79: =[1]!PropsSI("D","T",$B79+273.15,"Q",1,Fluid) -> 7.806865363 | G79: 0.001659025471 | H79: 0.1280923845 | I79: =[1]!PropsSI("P","T",$B79+273.15,"Q",1,Fluid)/1000 -> 1003.24031 | J79: =[1]!PropsSI("U","T",$B79+273.15,"Q",0,Fluid)/1000 -> 459.1569833 | K79: =[1]!PropsSI("U","T",$B79+273.15,"Q",1,Fluid)/1000 -> 1498.078059
B80: 26 | C80: =[1]!PropsSI("S","T",$B80+273.15,"Q",0,Fluid)/1000 -> 1.896340579 | D80: =[1]!PropsSI("S","T",$B80+273.15,"Q",1,Fluid)/1000 -> 5.779190428 | E80: =[1]!PropsSI("D","T",$B80+273.15,"Q",0,Fluid) -> 601.2577409 | F80: =[1]!PropsSI("D","T",$B80+273.15,"Q",1,Fluid) -> 8.044336872 | G80: 0.00166318025 | H80: 0.1243110546 | I80: =[1]!PropsSI("P","T",$B80+273.15,"Q",1,Fluid)/1000 -> 1034.531291 | J80: =[1]!PropsSI("U","T",$B80+273.15,"Q",0,Fluid)/1000 -> 463.9017353 | K80: =[1]!PropsSI("U","T",$B80+273.15,"Q",1,Fluid)/1000 -> 1498.573204
B81: 27 | C81: =[1]!PropsSI("S","T",$B81+273.15,"Q",0,Fluid)/1000 -> 1.912212432 | D81: =[1]!PropsSI("S","T",$B81+273.15,"Q",1,Fluid)/1000 -> 5.768000928 | E81: =[1]!PropsSI("D","T",$B81+273.15,"Q",0,Fluid) -> 599.7454905 | F81: =[1]!PropsSI("D","T",$B81+273.15,"Q",1,Fluid) -> 8.287601074 | G81: 0.001667373937 | H81: 0.1206621785 | I81: =[1]!PropsSI("P","T",$B81+273.15,"Q",1,Fluid)/1000 -> 1066.561106 | J81: =[1]!PropsSI("U","T",$B81+273.15,"Q",0,Fluid)/1000 -> 468.6533282 | K81: =[1]!PropsSI("U","T",$B81+273.15,"Q",1,Fluid)/1000 -> 1499.053015
B82: 28 | C82: =[1]!PropsSI("S","T",$B82+273.15,"Q",0,Fluid)/1000 -> 1.928055241 | D82: =[1]!PropsSI("S","T",$B82+273.15,"Q",1,Fluid)/1000 -> 5.756861064 | E82: =[1]!PropsSI("D","T",$B82+273.15,"Q",0,Fluid) -> 598.2266355 | F82: =[1]!PropsSI("D","T",$B82+273.15,"Q",1,Fluid) -> 8.536773764 | G82: 0.001671607282 | H82: 0.1171402719 | I82: =[1]!PropsSI("P","T",$B82+273.15,"Q",1,Fluid)/1000 -> 1099.341071 | J82: =[1]!PropsSI("U","T",$B82+273.15,"Q",0,Fluid)/1000 -> 473.411882 | K82: =[1]!PropsSI("U","T",$B82+273.15,"Q",1,Fluid)/1000 -> 1499.51731
B83: 29 | C83: =[1]!PropsSI("S","T",$B83+273.15,"Q",0,Fluid)/1000 -> 1.943869632 | D83: =[1]!PropsSI("S","T",$B83+273.15,"Q",1,Fluid)/1000 -> 5.745769333 | E83: =[1]!PropsSI("D","T",$B83+273.15,"Q",0,Fluid) -> 596.701059 | F83: =[1]!PropsSI("D","T",$B83+273.15,"Q",1,Fluid) -> 8.791973245 | G83: 0.001675881054 | H83: 0.1137401095 | I83: =[1]!PropsSI("P","T",$B83+273.15,"Q",1,Fluid)/1000 -> 1132.882571 | J83: =[1]!PropsSI("U","T",$B83+273.15,"Q",0,Fluid)/1000 -> 478.1775208 | K83: =[1]!PropsSI("U","T",$B83+273.15,"Q",1,Fluid)/1000 -> 1499.965904
B84: 30 | C84: =[1]!PropsSI("S","T",$B84+273.15,"Q",0,Fluid)/1000 -> 1.959656238 | D84: =[1]!PropsSI("S","T",$B84+273.15,"Q",1,Fluid)/1000 -> 5.734724234 | E84: =[1]!PropsSI("D","T",$B84+273.15,"Q",0,Fluid) -> 595.1686407 | F84: =[1]!PropsSI("D","T",$B84+273.15,"Q",1,Fluid) -> 9.053320419 | G84: 0.001680196051 | H84: 0.1104567113 | I84: =[1]!PropsSI("P","T",$B84+273.15,"Q",1,Fluid)/1000 -> 1167.197054 | J84: =[1]!PropsSI("U","T",$B84+273.15,"Q",0,Fluid)/1000 -> 482.9503725 | K84: =[1]!PropsSI("U","T",$B84+273.15,"Q",1,Fluid)/1000 -> 1500.398608
B85: 31 | C85: =[1]!PropsSI("S","T",$B85+273.15,"Q",0,Fluid)/1000 -> 1.9754157 | D85: =[1]!PropsSI("S","T",$B85+273.15,"Q",1,Fluid)/1000 -> 5.723724268 | E85: =[1]!PropsSI("D","T",$B85+273.15,"Q",0,Fluid) -> 593.6292568 | F85: =[1]!PropsSI("D","T",$B85+273.15,"Q",1,Fluid) -> 9.320938882 | G85: 0.001684553092 | H85: 0.1072853296 | I85: =[1]!PropsSI("P","T",$B85+273.15,"Q",1,Fluid)/1000 -> 1202.296035 | J85: =[1]!PropsSI("U","T",$B85+273.15,"Q",0,Fluid)/1000 -> 487.7305693 | K85: =[1]!PropsSI("U","T",$B85+273.15,"Q",1,Fluid)/1000 -> 1500.815225
B86: 32 | C86: =[1]!PropsSI("S","T",$B86+273.15,"Q",0,Fluid)/1000 -> 1.99114867 | D86: =[1]!PropsSI("S","T",$B86+273.15,"Q",1,Fluid)/1000 -> 5.712767935 | E86: =[1]!PropsSI("D","T",$B86+273.15,"Q",0,Fluid) -> 592.0827798 | F86: =[1]!PropsSI("D","T",$B86+273.15,"Q",1,Fluid) -> 9.594955023 | G86: 0.001688953022 | H86: 0.1042214369 | I86: =[1]!PropsSI("P","T",$B86+273.15,"Q",1,Fluid)/1000 -> 1238.191096 | J86: =[1]!PropsSI("U","T",$B86+273.15,"Q",0,Fluid)/1000 -> 492.5182476 | K86: =[1]!PropsSI("U","T",$B86+273.15,"Q",1,Fluid)/1000 -> 1501.215558
B87: 33 | C87: =[1]!PropsSI("S","T",$B87+273.15,"Q",0,Fluid)/1000 -> 2.006855806 | D87: =[1]!PropsSI("S","T",$B87+273.15,"Q",1,Fluid)/1000 -> 5.701853736 | E87: =[1]!PropsSI("D","T",$B87+273.15,"Q",0,Fluid) -> 590.5290787 | F87: =[1]!PropsSI("D","T",$B87+273.15,"Q",1,Fluid) -> 9.875498131 | G87: 0.001693396712 | H87: 0.1012607148 | I87: =[1]!PropsSI("P","T",$B87+273.15,"Q",1,Fluid)/1000 -> 1274.893883 | J87: =[1]!PropsSI("U","T",$B87+273.15,"Q",0,Fluid)/1000 -> 497.3135481 | K87: =[1]!PropsSI("U","T",$B87+273.15,"Q",1,Fluid)/1000 -> 1501.5994
B88: 34 | C88: =[1]!PropsSI("S","T",$B88+273.15,"Q",0,Fluid)/1000 -> 2.022537776 | D88: =[1]!PropsSI("S","T",$B88+273.15,"Q",1,Fluid)/1000 -> 5.690980171 | E88: =[1]!PropsSI("D","T",$B88+273.15,"Q",0,Fluid) -> 588.9680187 | F88: =[1]!PropsSI("D","T",$B88+273.15,"Q",1,Fluid) -> 10.1627005 | G88: 0.001697885061 | H88: 0.09839904264 | I88: =[1]!PropsSI("P","T",$B88+273.15,"Q",1,Fluid)/1000 -> 1312.416111 | J88: =[1]!PropsSI("U","T",$B88+273.15,"Q",0,Fluid)/1000 -> 502.116616 | K88: =[1]!PropsSI("U","T",$B88+273.15,"Q",1,Fluid)/1000 -> 1501.96654
B89: 35 | C89: =[1]!PropsSI("S","T",$B89+273.15,"Q",0,Fluid)/1000 -> 2.038195258 | D89: =[1]!PropsSI("S","T",$B89+273.15,"Q",1,Fluid)/1000 -> 5.680145735 | E89: =[1]!PropsSI("D","T",$B89+273.15,"Q",0,Fluid) -> 587.3994607 | F89: =[1]!PropsSI("D","T",$B89+273.15,"Q",1,Fluid) -> 10.45669756 | G89: 0.001702418996 | H89: 0.09563248766 | I89: =[1]!PropsSI("P","T",$B89+273.15,"Q",1,Fluid)/1000 -> 1350.769558 | J89: =[1]!PropsSI("U","T",$B89+273.15,"Q",0,Fluid)/1000 -> 506.927601 | K89: =[1]!PropsSI("U","T",$B89+273.15,"Q",1,Fluid)/1000 -> 1502.316763
B90: 36 | C90: =[1]!PropsSI("S","T",$B90+273.15,"Q",0,Fluid)/1000 -> 2.053828938 | D90: =[1]!PropsSI("S","T",$B90+273.15,"Q",1,Fluid)/1000 -> 5.669348923 | E90: =[1]!PropsSI("D","T",$B90+273.15,"Q",0,Fluid) -> 585.8232621 | F90: =[1]!PropsSI("D","T",$B90+273.15,"Q",1,Fluid) -> 10.75762796 | G90: 0.001706999474 | H90: 0.09295729536 | I90: =[1]!PropsSI("P","T",$B90+273.15,"Q",1,Fluid)/1000 -> 1389.966069 | J90: =[1]!PropsSI("U","T",$B90+273.15,"Q",0,Fluid)/1000 -> 511.7466577 | K90: =[1]!PropsSI("U","T",$B90+273.15,"Q",1,Fluid)/1000 -> 1502.649846
B91: 37 | C91: =[1]!PropsSI("S","T",$B91+273.15,"Q",0,Fluid)/1000 -> 2.069439514 | D91: =[1]!PropsSI("S","T",$B91+273.15,"Q",1,Fluid)/1000 -> 5.658588225 | E91: =[1]!PropsSI("D","T",$B91+273.15,"Q",0,Fluid) -> 584.2392756 | F91: =[1]!PropsSI("D","T",$B91+273.15,"Q",1,Fluid) -> 11.06563376 | G91: 0.001711627482 | H91: 0.09036988043 | I91: =[1]!PropsSI("P","T",$B91+273.15,"Q",1,Fluid)/1000 -> 1430.017556 | J91: =[1]!PropsSI("U","T",$B91+273.15,"Q",0,Fluid)/1000 -> 516.5739453 | K91: =[1]!PropsSI("U","T",$B91+273.15,"Q",1,Fluid)/1000 -> 1502.96556
B92: 38 | C92: =[1]!PropsSI("S","T",$B92+273.15,"Q",0,Fluid)/1000 -> 2.085027693 | D92: =[1]!PropsSI("S","T",$B92+273.15,"Q",1,Fluid)/1000 -> 5.647862126 | E92: =[1]!PropsSI("D","T",$B92+273.15,"Q",0,Fluid) -> 582.64735 | F92: =[1]!PropsSI("D","T",$B92+273.15,"Q",1,Fluid) -> 11.3808605 | G92: 0.001716304039 | H92: 0.08786681816 | I92: =[1]!PropsSI("P","T",$B92+273.15,"Q",1,Fluid)/1000 -> 1470.935997 | J92: =[1]!PropsSI("U","T",$B92+273.15,"Q",0,Fluid)/1000 -> 521.4096281 | K92: =[1]!PropsSI("U","T",$B92+273.15,"Q",1,Fluid)/1000 -> 1503.26367
B93: 39 | C93: =[1]!PropsSI("S","T",$B93+273.15,"Q",0,Fluid)/1000 -> 2.100594193 | D93: =[1]!PropsSI("S","T",$B93+273.15,"Q",1,Fluid)/1000 -> 5.637169104 | E93: =[1]!PropsSI("D","T",$B93+273.15,"Q",0,Fluid) -> 581.0473292 | F93: =[1]!PropsSI("D","T",$B93+273.15,"Q",1,Fluid) -> 11.70345737 | G93: 0.001721030198 | H93: 0.08544483638 | I93: =[1]!PropsSI("P","T",$B93+273.15,"Q",1,Fluid)/1000 -> 1512.733437 | J93: =[1]!PropsSI("U","T",$B93+273.15,"Q",0,Fluid)/1000 -> 526.2538756 | K93: =[1]!PropsSI("U","T",$B93+273.15,"Q",1,Fluid)/1000 -> 1503.543933
B94: 40 | C94: =[1]!PropsSI("S","T",$B94+273.15,"Q",0,Fluid)/1000 -> 2.116139743 | D94: =[1]!PropsSI("S","T",$B94+273.15,"Q",1,Fluid)/1000 -> 5.626507631 | E94: =[1]!PropsSI("D","T",$B94+273.15,"Q",0,Fluid) -> 579.4390529 | F94: =[1]!PropsSI("D","T",$B94+273.15,"Q",1,Fluid) -> 12.03357736 | G94: 0.001725807046 | H94: 0.08310080784 | I94: =[1]!PropsSI("P","T",$B94+273.15,"Q",1,Fluid)/1000 -> 1555.421989 | J94: =[1]!PropsSI("U","T",$B94+273.15,"Q",0,Fluid)/1000 -> 531.1068623 | K94: =[1]!PropsSI("U","T",$B94+273.15,"Q",1,Fluid)/1000 -> 1503.806101
B95: 41 | C95: =[1]!PropsSI("S","T",$B95+273.15,"Q",0,Fluid)/1000 -> 2.131665085 | D95: =[1]!PropsSI("S","T",$B95+273.15,"Q",1,Fluid)/1000 -> 5.615876171 | E95: =[1]!PropsSI("D","T",$B95+273.15,"Q",0,Fluid) -> 577.8223556 | F95: =[1]!PropsSI("D","T",$B95+273.15,"Q",1,Fluid) -> 12.37137742 | G95: 0.001730635705 | H95: 0.08083174301 | I95: =[1]!PropsSI("P","T",$B95+273.15,"Q",1,Fluid)/1000 -> 1599.013831 | J95: =[1]!PropsSI("U","T",$B95+273.15,"Q",0,Fluid)/1000 -> 535.9687683 | K95: =[1]!PropsSI("U","T",$B95+273.15,"Q",1,Fluid)/1000 -> 1504.049917
B96: 42 | C96: =[1]!PropsSI("S","T",$B96+273.15,"Q",0,Fluid)/1000 -> 2.14717097 | D96: =[1]!PropsSI("S","T",$B96+273.15,"Q",1,Fluid)/1000 -> 5.605273178 | E96: =[1]!PropsSI("D","T",$B96+273.15,"Q",0,Fluid) -> 576.1970672 | F96: =[1]!PropsSI("D","T",$B96+273.15,"Q",1,Fluid) -> 12.71701859 | G96: 0.001735517337 | H96: 0.07863478321 | I96: =[1]!PropsSI("P","T",$B96+273.15,"Q",1,Fluid)/1000 -> 1643.521211 | J96: =[1]!PropsSI("U","T",$B96+273.15,"Q",0,Fluid)/1000 -> 540.8397794 | K96: =[1]!PropsSI("U","T",$B96+273.15,"Q",1,Fluid)/1000 -> 1504.275116
B97: 43 | C97: =[1]!PropsSI("S","T",$B97+273.15,"Q",0,Fluid)/1000 -> 2.162658166 | D97: =[1]!PropsSI("S","T",$B97+273.15,"Q",1,Fluid)/1000 -> 5.594697096 | E97: =[1]!PropsSI("D","T",$B97+273.15,"Q",0,Fluid) -> 574.5630123 | F97: =[1]!PropsSI("D","T",$B97+273.15,"Q",1,Fluid) -> 13.07066623 | G97: 0.001740453142 | H97: 0.07650719425 | I97: =[1]!PropsSI("P","T",$B97+273.15,"Q",1,Fluid)/1000 -> 1688.956445 | J97: =[1]!PropsSI("U","T",$B97+273.15,"Q",0,Fluid)/1000 -> 545.720087 | K97: =[1]!PropsSI("U","T",$B97+273.15,"Q",1,Fluid)/1000 -> 1504.481426
B98: 44 | C98: =[1]!PropsSI("S","T",$B98+273.15,"Q",0,Fluid)/1000 -> 2.178127449 | D98: =[1]!PropsSI("S","T",$B98+273.15,"Q",1,Fluid)/1000 -> 5.584146357 | E98: =[1]!PropsSI("D","T",$B98+273.15,"Q",0,Fluid) -> 572.9200102 | F98: =[1]!PropsSI("D","T",$B98+273.15,"Q",1,Fluid) -> 13.43249013 | G98: 0.001745444359 | H98: 0.07444636028 | I98: =[1]!PropsSI("P","T",$B98+273.15,"Q",1,Fluid)/1000 -> 1735.331918 | J98: =[1]!PropsSI("U","T",$B98+273.15,"Q",0,Fluid)/1000 -> 550.6098886 | K98: =[1]!PropsSI("U","T",$B98+273.15,"Q",1,Fluid)/1000 -> 1504.668565
B99: 45 | C99: =[1]!PropsSI("S","T",$B99+273.15,"Q",0,Fluid)/1000 -> 2.193579612 | D99: =[1]!PropsSI("S","T",$B99+273.15,"Q",1,Fluid)/1000 -> 5.573619381 | E99: =[1]!PropsSI("D","T",$B99+273.15,"Q",0,Fluid) -> 571.2678746 | F99: =[1]!PropsSI("D","T",$B99+273.15,"Q",1,Fluid) -> 13.80266479 | G99: 0.001750492273 | H99: 0.07244977803 | I99: =[1]!PropsSI("P","T",$B99+273.15,"Q",1,Fluid)/1000 -> 1782.660085 | J99: =[1]!PropsSI("U","T",$B99+273.15,"Q",0,Fluid)/1000 -> 555.5093876 | K99: =[1]!PropsSI("U","T",$B99+273.15,"Q",1,Fluid)/1000 -> 1504.836245
B100: 46 | C100: =[1]!PropsSI("S","T",$B100+273.15,"Q",0,Fluid)/1000 -> 2.20901546 | D100: =[1]!PropsSI("S","T",$B100+273.15,"Q",1,Fluid)/1000 -> 5.563114574 | E100: =[1]!PropsSI("D","T",$B100+273.15,"Q",0,Fluid) -> 569.6064136 | F100: =[1]!PropsSI("D","T",$B100+273.15,"Q",1,Fluid) -> 14.18136952 | G100: 0.00175559821 | H100: 0.07051505138 | I100: =[1]!PropsSI("P","T",$B100+273.15,"Q",1,Fluid)/1000 -> 1830.953472 | J100: =[1]!PropsSI("U","T",$B100+273.15,"Q",0,Fluid)/1000 -> 560.4187942 | K100: =[1]!PropsSI("U","T",$B100+273.15,"Q",1,Fluid)/1000 -> 1504.984167
B101: 47 | C101: =[1]!PropsSI("S","T",$B101+273.15,"Q",0,Fluid)/1000 -> 2.224435815 | D101: =[1]!PropsSI("S","T",$B101+273.15,"Q",1,Fluid)/1000 -> 5.552630325 | E101: =[1]!PropsSI("D","T",$B101+273.15,"Q",0,Fluid) -> 567.9354294 | F101: =[1]!PropsSI("D","T",$B101+273.15,"Q",1,Fluid) -> 14.56878873 | G101: 0.001760763545 | H101: 0.06863988616 | I101: =[1]!PropsSI("P","T",$B101+273.15,"Q",1,Fluid)/1000 -> 1880.224674 | J101: =[1]!PropsSI("U","T",$B101+273.15,"Q",0,Fluid)/1000 -> 565.3383247 | K101: =[1]!PropsSI("U","T",$B101+273.15,"Q",1,Fluid)/1000 -> 1505.112021
B102: 48 | C102: =[1]!PropsSI("S","T",$B102+273.15,"Q",0,Fluid)/1000 -> 2.239841511 | D102: =[1]!PropsSI("S","T",$B102+273.15,"Q",1,Fluid)/1000 -> 5.54216501 | E102: =[1]!PropsSI("D","T",$B102+273.15,"Q",0,Fluid) -> 566.254718 | F102: =[1]!PropsSI("D","T",$B102+273.15,"Q",1,Fluid) -> 14.96511214 | G102: 0.001765989701 | H102: 0.0668220853 | I102: =[1]!PropsSI("P","T",$B102+273.15,"Q",1,Fluid)/1000 -> 1930.48636 | J102: =[1]!PropsSI("U","T",$B102+273.15,"Q",0,Fluid)/1000 -> 570.2682026 | K102: =[1]!PropsSI("U","T",$B102+273.15,"Q",1,Fluid)/1000 -> 1505.219489
B103: 49 | C103: =[1]!PropsSI("S","T",$B103+273.15,"Q",0,Fluid)/1000 -> 2.255233401 | D103: =[1]!PropsSI("S","T",$B103+273.15,"Q",1,Fluid)/1000 -> 5.531716983 | E103: =[1]!PropsSI("D","T",$B103+273.15,"Q",0,Fluid) -> 564.5640689 | F103: =[1]!PropsSI("D","T",$B103+273.15,"Q",1,Fluid) -> 15.37053499 | G103: 0.001771278151 | H103: 0.06505954417 | I103: =[1]!PropsSI("P","T",$B103+273.15,"Q",1,Fluid)/1000 -> 1981.751272 | J103: =[1]!PropsSI("U","T",$B103+273.15,"Q",0,Fluid)/1000 -> 575.2086583 | K103: =[1]!PropsSI("U","T",$B103+273.15,"Q",1,Fluid)/1000 -> 1505.306242
B104: 50 | C104: =[1]!PropsSI("S","T",$B104+273.15,"Q",0,Fluid)/1000 -> 2.270612353 | D104: =[1]!PropsSI("S","T",$B104+273.15,"Q",1,Fluid)/1000 -> 5.521284581 | E104: =[1]!PropsSI("D","T",$B104+273.15,"Q",0,Fluid) -> 562.8632651 | F104: =[1]!PropsSI("D","T",$B104+273.15,"Q",1,Fluid) -> 15.7852583 | G104: 0.001776630422 | H104: 0.06335024621 | I104: =[1]!PropsSI("P","T",$B104+273.15,"Q",1,Fluid)/1000 -> 2034.032226 | J104: =[1]!PropsSI("U","T",$B104+273.15,"Q",0,Fluid)/1000 -> 580.1599294 | K104: =[1]!PropsSI("U","T",$B104+273.15,"Q",1,Fluid)/1000 -> 1505.371941
B105: 51 | C105: =[1]!PropsSI("S","T",$B105+273.15,"Q",0,Fluid)/1000 -> 2.285979251 | D105: =[1]!PropsSI("S","T",$B105+273.15,"Q",1,Fluid)/1000 -> 5.51086612 | E105: =[1]!PropsSI("D","T",$B105+273.15,"Q",0,Fluid) -> 561.1520827 | F105: =[1]!PropsSI("D","T",$B105+273.15,"Q",1,Fluid) -> 16.20948917 | G105: 0.001782048095 | H105: 0.06169225875 | I105: =[1]!PropsSI("P","T",$B105+273.15,"Q",1,Fluid)/1000 -> 2087.342112 | J105: =[1]!PropsSI("U","T",$B105+273.15,"Q",0,Fluid)/1000 -> 585.1222611 | K105: =[1]!PropsSI("U","T",$B105+273.15,"Q",1,Fluid)/1000 -> 1505.416234
B106: 52 | C106: =[1]!PropsSI("S","T",$B106+273.15,"Q",0,Fluid)/1000 -> 2.301335 | D106: =[1]!PropsSI("S","T",$B106+273.15,"Q",1,Fluid)/1000 -> 5.500459892 | E106: =[1]!PropsSI("D","T",$B106+273.15,"Q",0,Fluid) -> 559.4302904 | F106: =[1]!PropsSI("D","T",$B106+273.15,"Q",1,Fluid) -> 16.643441 | G106: 0.001787532812 | H106: 0.06008372907 | I106: =[1]!PropsSI("P","T",$B106+273.15,"Q",1,Fluid)/1000 -> 2141.693898 | J106: =[1]!PropsSI("U","T",$B106+273.15,"Q",0,Fluid)/1000 -> 590.0959067 | K106: =[1]!PropsSI("U","T",$B106+273.15,"Q",1,Fluid)/1000 -> 1505.438757
B107: 53 | C107: =[1]!PropsSI("S","T",$B107+273.15,"Q",0,Fluid)/1000 -> 2.316680521 | D107: =[1]!PropsSI("S","T",$B107+273.15,"Q",1,Fluid)/1000 -> 5.490064166 | E107: =[1]!PropsSI("D","T",$B107+273.15,"Q",0,Fluid) -> 557.6976497 | F107: =[1]!PropsSI("D","T",$B107+273.15,"Q",1,Fluid) -> 17.08733385 | G107: 0.001793086273 | H107: 0.05852288069 | I107: =[1]!PropsSI("P","T",$B107+273.15,"Q",1,Fluid)/1000 -> 2197.100629 | J107: =[1]!PropsSI("U","T",$B107+273.15,"Q",0,Fluid)/1000 -> 595.0811274 | K107: =[1]!PropsSI("U","T",$B107+273.15,"Q",1,Fluid)/1000 -> 1505.439136
B108: 54 | C108: =[1]!PropsSI("S","T",$B108+273.15,"Q",0,Fluid)/1000 -> 2.332016757 | D108: =[1]!PropsSI("S","T",$B108+273.15,"Q",1,Fluid)/1000 -> 5.479677186 | E108: =[1]!PropsSI("D","T",$B108+273.15,"Q",0,Fluid) -> 555.9539142 | F108: =[1]!PropsSI("D","T",$B108+273.15,"Q",1,Fluid) -> 17.54139468 | G108: 0.001798710243 | H108: 0.05700800981 | I108: =[1]!PropsSI("P","T",$B108+273.15,"Q",1,Fluid)/1000 -> 2253.575429 | J108: =[1]!PropsSI("U","T",$B108+273.15,"Q",0,Fluid)/1000 -> 600.0781928 | K108: =[1]!PropsSI("U","T",$B108+273.15,"Q",1,Fluid)/1000 -> 1505.416981
B109: 55 | C109: =[1]!PropsSI("S","T",$B109+273.15,"Q",0,Fluid)/1000 -> 2.347344668 | D109: =[1]!PropsSI("S","T",$B109+273.15,"Q",1,Fluid)/1000 -> 5.469297165 | E109: =[1]!PropsSI("D","T",$B109+273.15,"Q",0,Fluid) -> 554.1988293 | F109: =[1]!PropsSI("D","T",$B109+273.15,"Q",1,Fluid) -> 18.00585777 | G109: 0.001804406554 | H109: 0.05553748189 | I109: =[1]!PropsSI("P","T",$B109+273.15,"Q",1,Fluid)/1000 -> 2311.131502 | J109: =[1]!PropsSI("U","T",$B109+273.15,"Q",0,Fluid)/1000 -> 605.0873816 | K109: =[1]!PropsSI("U","T",$B109+273.15,"Q",1,Fluid)/1000 -> 1505.37189
B110: 56 | C110: =[1]!PropsSI("S","T",$B110+273.15,"Q",0,Fluid)/1000 -> 2.36266524 | D110: =[1]!PropsSI("S","T",$B110+273.15,"Q",1,Fluid)/1000 -> 5.458922291 | E110: =[1]!PropsSI("D","T",$B110+273.15,"Q",0,Fluid) -> 552.4321321 | F110: =[1]!PropsSI("D","T",$B110+273.15,"Q",1,Fluid) -> 18.48096501 | G110: 0.001810177109 | H110: 0.05410972854 | I110: =[1]!PropsSI("P","T",$B110+273.15,"Q",1,Fluid)/1000 -> 2369.782135 | J110: =[1]!PropsSI("U","T",$B110+273.15,"Q",0,Fluid)/1000 -> 610.1089814 | K110: =[1]!PropsSI("U","T",$B110+273.15,"Q",1,Fluid)/1000 -> 1505.303447
B111: 57 | C111: =[1]!PropsSI("S","T",$B111+273.15,"Q",0,Fluid)/1000 -> 2.377979478 | D111: =[1]!PropsSI("S","T",$B111+273.15,"Q",1,Fluid)/1000 -> 5.448550717 | E111: =[1]!PropsSI("D","T",$B111+273.15,"Q",0,Fluid) -> 550.6535508 | F111: =[1]!PropsSI("D","T",$B111+273.15,"Q",1,Fluid) -> 18.96696629 | G111: 0.001816023884 | H111: 0.05272324445 | I111: =[1]!PropsSI("P","T",$B111+273.15,"Q",1,Fluid)/1000 -> 2429.5407 | J111: =[1]!PropsSI("U","T",$B111+273.15,"Q",0,Fluid)/1000 -> 615.1432894 | K111: =[1]!PropsSI("U","T",$B111+273.15,"Q",1,Fluid)/1000 -> 1505.211219
B112: 58 | C112: =[1]!PropsSI("S","T",$B112+273.15,"Q",0,Fluid)/1000 -> 2.393288412 | D112: =[1]!PropsSI("S","T",$B112+273.15,"Q",1,Fluid)/1000 -> 5.438180563 | E112: =[1]!PropsSI("D","T",$B112+273.15,"Q",0,Fluid) -> 548.8628045 | F112: =[1]!PropsSI("D","T",$B112+273.15,"Q",1,Fluid) -> 19.46411989 | G112: 0.001821948931 | H112: 0.0513765845 | I112: =[1]!PropsSI("P","T",$B112+273.15,"Q",1,Fluid)/1000 -> 2490.420652 | J112: =[1]!PropsSI("U","T",$B112+273.15,"Q",0,Fluid)/1000 -> 620.1906127 | K112: =[1]!PropsSI("U","T",$B112+273.15,"Q",1,Fluid)/1000 -> 1505.094761
B113: 59 | C113: =[1]!PropsSI("S","T",$B113+273.15,"Q",0,Fluid)/1000 -> 2.408593097 | D113: =[1]!PropsSI("S","T",$B113+273.15,"Q",1,Fluid)/1000 -> 5.427809915 | E113: =[1]!PropsSI("D","T",$B113+273.15,"Q",0,Fluid) -> 547.0596024 | F113: =[1]!PropsSI("D","T",$B113+273.15,"Q",1,Fluid) -> 19.97269293 | G113: 0.001827954387 | H113: 0.05006836102 | I113: =[1]!PropsSI("P","T",$B113+273.15,"Q",1,Fluid)/1000 -> 2552.435535 | J113: =[1]!PropsSI("U","T",$B113+273.15,"Q",0,Fluid)/1000 -> 625.2512687 | K113: =[1]!PropsSI("U","T",$B113+273.15,"Q",1,Fluid)/1000 -> 1504.953607
B114: 60 | C114: =[1]!PropsSI("S","T",$B114+273.15,"Q",0,Fluid)/1000 -> 2.423894611 | D114: =[1]!PropsSI("S","T",$B114+273.15,"Q",1,Fluid)/1000 -> 5.41743682 | E114: =[1]!PropsSI("D","T",$B114+273.15,"Q",0,Fluid) -> 545.2436442 | F114: =[1]!PropsSI("D","T",$B114+273.15,"Q",1,Fluid) -> 20.49296179 | G114: 0.00183404247 | H114: 0.04879724124 | I114: =[1]!PropsSI("P","T",$B114+273.15,"Q",1,Fluid)/1000 -> 2615.598983 | J114: =[1]!PropsSI("U","T",$B114+273.15,"Q",0,Fluid)/1000 -> 630.3255856 | K114: =[1]!PropsSI("U","T",$B114+273.15,"Q",1,Fluid)/1000 -> 1504.787278
B115: 61 | C115: =[1]!PropsSI("S","T",$B115+273.15,"Q",0,Fluid)/1000 -> 2.439194062 | D115: =[1]!PropsSI("S","T",$B115+273.15,"Q",1,Fluid)/1000 -> 5.407059283 | E115: =[1]!PropsSI("D","T",$B115+273.15,"Q",0,Fluid) -> 543.4146186 | F115: =[1]!PropsSI("D","T",$B115+273.15,"Q",1,Fluid) -> 21.0252126 | G115: 0.001840215492 | H115: 0.04756194475 | I115: =[1]!PropsSI("P","T",$B115+273.15,"Q",1,Fluid)/1000 -> 2679.924721 | J115: =[1]!PropsSI("U","T",$B115+273.15,"Q",0,Fluid)/1000 -> 635.4139028 | K115: =[1]!PropsSI("U","T",$B115+273.15,"Q",1,Fluid)/1000 -> 1504.595274
B116: 62 | C116: =[1]!PropsSI("S","T",$B116+273.15,"Q",0,Fluid)/1000 -> 2.454492585 | D116: =[1]!PropsSI("S","T",$B116+273.15,"Q",1,Fluid)/1000 -> 5.396675268 | E116: =[1]!PropsSI("D","T",$B116+273.15,"Q",0,Fluid) -> 541.5722037 | F116: =[1]!PropsSI("D","T",$B116+273.15,"Q",1,Fluid) -> 21.56974176 | G116: 0.001846475859 | H116: 0.04636124119 | I116: =[1]!PropsSI("P","T",$B116+273.15,"Q",1,Fluid)/1000 -> 2745.42657 | J116: =[1]!PropsSI("U","T",$B116+273.15,"Q",0,Fluid)/1000 -> 640.5165714 | K116: =[1]!PropsSI("U","T",$B116+273.15,"Q",1,Fluid)/1000 -> 1504.377078
B117: 63 | C117: =[1]!PropsSI("S","T",$B117+273.15,"Q",0,Fluid)/1000 -> 2.469791346 | D117: =[1]!PropsSI("S","T",$B117+273.15,"Q",1,Fluid)/1000 -> 5.386282692 | E117: =[1]!PropsSI("D","T",$B117+273.15,"Q",0,Fluid) -> 539.7160658 | F117: =[1]!PropsSI("D","T",$B117+273.15,"Q",1,Fluid) -> 22.12685645 | G117: 0.001852826075 | H117: 0.04519394802 | I117: =[1]!PropsSI("P","T",$B117+273.15,"Q",1,Fluid)/1000 -> 2812.118445 | J117: =[1]!PropsSI("U","T",$B117+273.15,"Q",0,Fluid)/1000 -> 645.6339548 | K117: =[1]!PropsSI("U","T",$B117+273.15,"Q",1,Fluid)/1000 -> 1504.132152
B118: 64 | C118: =[1]!PropsSI("S","T",$B118+273.15,"Q",0,Fluid)/1000 -> 2.48509154 | D118: =[1]!PropsSI("S","T",$B118+273.15,"Q",1,Fluid)/1000 -> 5.375879425 | E118: =[1]!PropsSI("D","T",$B118+273.15,"Q",0,Fluid) -> 537.8458596 | F118: =[1]!PropsSI("D","T",$B118+273.15,"Q",1,Fluid) -> 22.69687524 | G118: 0.001859268752 | H118: 0.04405892836 | I118: =[1]!PropsSI("P","T",$B118+273.15,"Q",1,Fluid)/1000 -> 2880.014362 | J118: =[1]!PropsSI("U","T",$B118+273.15,"Q",0,Fluid)/1000 -> 650.7664292 | K118: =[1]!PropsSI("U","T",$B118+273.15,"Q",1,Fluid)/1000 -> 1503.859939
B119: 65 | C119: =[1]!PropsSI("S","T",$B119+273.15,"Q",0,Fluid)/1000 -> 2.500394397 | D119: =[1]!PropsSI("S","T",$B119+273.15,"Q",1,Fluid)/1000 -> 5.365463283 | E119: =[1]!PropsSI("D","T",$B119+273.15,"Q",0,Fluid) -> 535.9612269 | F119: =[1]!PropsSI("D","T",$B119+273.15,"Q",1,Fluid) -> 23.28012869 | G119: 0.00186580661 | H119: 0.04295508901 | I119: =[1]!PropsSI("P","T",$B119+273.15,"Q",1,Fluid)/1000 -> 2949.128439 | J119: =[1]!PropsSI("U","T",$B119+273.15,"Q",0,Fluid)/1000 -> 655.9143843 | K119: =[1]!PropsSI("U","T",$B119+273.15,"Q",1,Fluid)/1000 -> 1503.559857
B120: 66 | C120: =[1]!PropsSI("S","T",$B120+273.15,"Q",0,Fluid)/1000 -> 2.515701181 | D120: =[1]!PropsSI("S","T",$B120+273.15,"Q",1,Fluid)/1000 -> 5.35503203 | E120: =[1]!PropsSI("D","T",$B120+273.15,"Q",0,Fluid) -> 534.0617965 | F120: =[1]!PropsSI("D","T",$B120+273.15,"Q",1,Fluid) -> 23.87696002 | G120: 0.00187244249 | H120: 0.04188137849 | I120: =[1]!PropsSI("P","T",$B120+273.15,"Q",1,Fluid)/1000 -> 3019.474897 | J120: =[1]!PropsSI("U","T",$B120+273.15,"Q",0,Fluid)/1000 -> 661.0782235 | K120: =[1]!PropsSI("U","T",$B120+273.15,"Q",1,Fluid)/1000 -> 1503.231303
B121: 67 | C121: =[1]!PropsSI("S","T",$B121+273.15,"Q",0,Fluid)/1000 -> 2.53101319 | D121: =[1]!PropsSI("S","T",$B121+273.15,"Q",1,Fluid)/1000 -> 5.344583369 | E121: =[1]!PropsSI("D","T",$B121+273.15,"Q",0,Fluid) -> 532.1471831 | F121: =[1]!PropsSI("D","T",$B121+273.15,"Q",1,Fluid) -> 24.48772582 | G121: 0.001879179354 | H121: 0.04083678522 | I121: =[1]!PropsSI("P","T",$B121+273.15,"Q",1,Fluid)/1000 -> 3091.068068 | J121: =[1]!PropsSI("U","T",$B121+273.15,"Q",0,Fluid)/1000 -> 666.2583652 | K121: =[1]!PropsSI("U","T",$B121+273.15,"Q",1,Fluid)/1000 -> 1502.87365
B122: 68 | C122: =[1]!PropsSI("S","T",$B122+273.15,"Q",0,Fluid)/1000 -> 2.546331765 | D122: =[1]!PropsSI("S","T",$B122+273.15,"Q",1,Fluid)/1000 -> 5.334114943 | E122: =[1]!PropsSI("D","T",$B122+273.15,"Q",0,Fluid) -> 530.2169872 | F122: =[1]!PropsSI("D","T",$B122+273.15,"Q",1,Fluid) -> 25.11279678 | G122: 0.001886020298 | H122: 0.03982033577 | I122: =[1]!PropsSI("P","T",$B122+273.15,"Q",1,Fluid)/1000 -> 3163.922393 | J122: =[1]!PropsSI("U","T",$B122+273.15,"Q",0,Fluid)/1000 -> 671.4552433 | K122: =[1]!PropsSI("U","T",$B122+273.15,"Q",1,Fluid)/1000 -> 1502.486244
B123: 69 | C123: =[1]!PropsSI("S","T",$B123+273.15,"Q",0,Fluid)/1000 -> 2.561658283 | D123: =[1]!PropsSI("S","T",$B123+273.15,"Q",1,Fluid)/1000 -> 5.323624327 | E123: =[1]!PropsSI("D","T",$B123+273.15,"Q",0,Fluid) -> 528.2707938 | F123: =[1]!PropsSI("D","T",$B123+273.15,"Q",1,Fluid) -> 25.75255853 | G123: 0.001892968553 | H123: 0.03883109318 | I123: =[1]!PropsSI("P","T",$B123+273.15,"Q",1,Fluid)/1000 -> 3238.05243 | J123: =[1]!PropsSI("U","T",$B123+273.15,"Q",0,Fluid)/1000 -> 676.6693075 | K123: =[1]!PropsSI("U","T",$B123+273.15,"Q",1,Fluid)/1000 -> 1502.068406
B124: 70 | C124: =[1]!PropsSI("S","T",$B124+273.15,"Q",0,Fluid)/1000 -> 2.576994165 | D124: =[1]!PropsSI("S","T",$B124+273.15,"Q",1,Fluid)/1000 -> 5.31310903 | E124: =[1]!PropsSI("D","T",$B124+273.15,"Q",0,Fluid) -> 526.3081719 | F124: =[1]!PropsSI("D","T",$B124+273.15,"Q",1,Fluid) -> 26.40741249 | G124: 0.0019000275 | H124: 0.0378681554 | I124: =[1]!PropsSI("P","T",$B124+273.15,"Q",1,Fluid)/1000 -> 3313.472853 | J124: =[1]!PropsSI("U","T",$B124+273.15,"Q",0,Fluid)/1000 -> 681.901025 | K124: =[1]!PropsSI("U","T",$B124+273.15,"Q",1,Fluid)/1000 -> 1501.619426
B125: 71 | C125: =[1]!PropsSI("S","T",$B125+273.15,"Q",0,Fluid)/1000 -> 2.592340877 | D125: =[1]!PropsSI("S","T",$B125+273.15,"Q",1,Fluid)/1000 -> 5.302566483 | E125: =[1]!PropsSI("D","T",$B125+273.15,"Q",0,Fluid) -> 524.3286737 | F125: =[1]!PropsSI("D","T",$B125+273.15,"Q",1,Fluid) -> 27.07777681 | G125: 0.001907200674 | H125: 0.03693065376 | I125: =[1]!PropsSI("P","T",$B125+273.15,"Q",1,Fluid)/1000 -> 3390.198461 | J125: =[1]!PropsSI("U","T",$B125+273.15,"Q",0,Fluid)/1000 -> 687.1508806 | K125: =[1]!PropsSI("U","T",$B125+273.15,"Q",1,Fluid)/1000 -> 1501.138566
B126: 72 | C126: =[1]!PropsSI("S","T",$B126+273.15,"Q",0,Fluid)/1000 -> 2.607699934 | D126: =[1]!PropsSI("S","T",$B126+273.15,"Q",1,Fluid)/1000 -> 5.291994039 | E126: =[1]!PropsSI("D","T",$B126+273.15,"Q",0,Fluid) -> 522.3318334 | F126: =[1]!PropsSI("D","T",$B126+273.15,"Q",1,Fluid) -> 27.76408736 | G126: 0.001914491777 | H126: 0.03601775152 | I126: =[1]!PropsSI("P","T",$B126+273.15,"Q",1,Fluid)/1000 -> 3468.244177 | J126: =[1]!PropsSI("U","T",$B126+273.15,"Q",0,Fluid)/1000 -> 692.4193779 | K126: =[1]!PropsSI("U","T",$B126+273.15,"Q",1,Fluid)/1000 -> 1500.625056
B127: 73 | C127: =[1]!PropsSI("S","T",$B127+273.15,"Q",0,Fluid)/1000 -> 2.6230729 | D127: =[1]!PropsSI("S","T",$B127+273.15,"Q",1,Fluid)/1000 -> 5.281388968 | E127: =[1]!PropsSI("D","T",$B127+273.15,"Q",0,Fluid) -> 520.3171668 | F127: =[1]!PropsSI("D","T",$B127+273.15,"Q",1,Fluid) -> 28.46679885 | G127: 0.001921904684 | H127: 0.0351286425 | I127: =[1]!PropsSI("P","T",$B127+273.15,"Q",1,Fluid)/1000 -> 3547.625057 | J127: =[1]!PropsSI("U","T",$B127+273.15,"Q",0,Fluid)/1000 -> 697.7070406 | K127: =[1]!PropsSI("U","T",$B127+273.15,"Q",1,Fluid)/1000 -> 1500.078092
B128: 74 | C128: =[1]!PropsSI("S","T",$B128+273.15,"Q",0,Fluid)/1000 -> 2.63846139 | D128: =[1]!PropsSI("S","T",$B128+273.15,"Q",1,Fluid)/1000 -> 5.270748449 | E128: =[1]!PropsSI("D","T",$B128+273.15,"Q",0,Fluid) -> 518.2841694 | F128: =[1]!PropsSI("D","T",$B128+273.15,"Q",1,Fluid) -> 29.18638593 | G128: 0.001929443458 | H128: 0.03426254976 | I128: =[1]!PropsSI("P","T",$B128+273.15,"Q",1,Fluid)/1000 -> 3628.356293 | J128: =[1]!PropsSI("U","T",$B128+273.15,"Q",0,Fluid)/1000 -> 703.0144131 | K128: =[1]!PropsSI("U","T",$B128+273.15,"Q",1,Fluid)/1000 -> 1499.496836
B129: 75 | C129: =[1]!PropsSI("S","T",$B129+273.15,"Q",0,Fluid)/1000 -> 2.653867079 | D129: =[1]!PropsSI("S","T",$B129+273.15,"Q",1,Fluid)/1000 -> 5.260069568 | E129: =[1]!PropsSI("D","T",$B129+273.15,"Q",0,Fluid) -> 516.2323163 | F129: =[1]!PropsSI("D","T",$B129+273.15,"Q",1,Fluid) -> 29.92334448 | G129: 0.001937112359 | H129: 0.03341872432 | I129: =[1]!PropsSI("P","T",$B129+273.15,"Q",1,Fluid)/1000 -> 3710.453215 | J129: =[1]!PropsSI("U","T",$B129+273.15,"Q",0,Fluid)/1000 -> 708.342062 | K129: =[1]!PropsSI("U","T",$B129+273.15,"Q",1,Fluid)/1000 -> 1498.88041
B130: 76 | C130: =[1]!PropsSI("S","T",$B130+273.15,"Q",0,Fluid)/1000 -> 2.6692917 | D130: =[1]!PropsSI("S","T",$B130+273.15,"Q",1,Fluid)/1000 -> 5.249349306 | E130: =[1]!PropsSI("D","T",$B130+273.15,"Q",0,Fluid) -> 514.1610601 | F130: =[1]!PropsSI("D","T",$B130+273.15,"Q",1,Fluid) -> 30.67819298 | G130: 0.001944915859 | H130: 0.03259644402 | I130: =[1]!PropsSI("P","T",$B130+273.15,"Q",1,Fluid)/1000 -> 3793.931302 | J130: =[1]!PropsSI("U","T",$B130+273.15,"Q",0,Fluid)/1000 -> 713.6905775 | K130: =[1]!PropsSI("U","T",$B130+273.15,"Q",1,Fluid)/1000 -> 1498.227898
B131: 77 | C131: =[1]!PropsSI("S","T",$B131+273.15,"Q",0,Fluid)/1000 -> 2.684737049 | D131: =[1]!PropsSI("S","T",$B131+273.15,"Q",1,Fluid)/1000 -> 5.238584538 | E131: =[1]!PropsSI("D","T",$B131+273.15,"Q",0,Fluid) -> 512.0698302 | F131: =[1]!PropsSI("D","T",$B131+273.15,"Q",1,Fluid) -> 31.45147393 | G131: 0.001952858655 | H131: 0.03179501229 | I131: =[1]!PropsSI("P","T",$B131+273.15,"Q",1,Fluid)/1000 -> 3878.806182 | J131: =[1]!PropsSI("U","T",$B131+273.15,"Q",0,Fluid)/1000 -> 719.0605742 | K131: =[1]!PropsSI("U","T",$B131+273.15,"Q",1,Fluid)/1000 -> 1497.538342
B132: 78 | C132: =[1]!PropsSI("S","T",$B132+273.15,"Q",0,Fluid)/1000 -> 2.700204992 | D132: =[1]!PropsSI("S","T",$B132+273.15,"Q",1,Fluid)/1000 -> 5.227772024 | E132: =[1]!PropsSI("D","T",$B132+273.15,"Q",0,Fluid) -> 509.9580312 | F132: =[1]!PropsSI("D","T",$B132+273.15,"Q",1,Fluid) -> 32.24375546 | G132: 0.001960945683 | H132: 0.0310137571 | I132: =[1]!PropsSI("P","T",$B132+273.15,"Q",1,Fluid)/1000 -> 3965.093641 | J132: =[1]!PropsSI("U","T",$B132+273.15,"Q",0,Fluid)/1000 -> 724.4526931 | K132: =[1]!PropsSI("U","T",$B132+273.15,"Q",1,Fluid)/1000 -> 1496.810739
B133: 79 | C133: =[1]!PropsSI("S","T",$B133+273.15,"Q",0,Fluid)/1000 -> 2.715697463 | D133: =[1]!PropsSI("S","T",$B133+273.15,"Q",1,Fluid)/1000 -> 5.216908399 | E133: =[1]!PropsSI("D","T",$B133+273.15,"Q",0,Fluid) -> 507.8250414 | F133: =[1]!PropsSI("D","T",$B133+273.15,"Q",1,Fluid) -> 33.05563307 | G133: =IF(E133<>0,1/E133,"") -> 0.001969182137 | H133: =IF(F133<>0,1/F133,"") -> 0.0302520299 | I133: =[1]!PropsSI("P","T",$B133+273.15,"Q",1,Fluid)/1000 -> 4052.809629 | J133: =[1]!PropsSI("U","T",$B133+273.15,"Q",0,Fluid)/1000 -> 729.8676031 | K133: =[1]!PropsSI("U","T",$B133+273.15,"Q",1,Fluid)/1000 -> 1496.044036
B134: 80 | C134: =[1]!PropsSI("S","T",$B134+273.15,"Q",0,Fluid)/1000 -> 2.731216477 | D134: =[1]!PropsSI("S","T",$B134+273.15,"Q",1,Fluid)/1000 -> 5.205990166 | E134: =[1]!PropsSI("D","T",$B134+273.15,"Q",0,Fluid) -> 505.670211 | F134: =[1]!PropsSI("D","T",$B134+273.15,"Q",1,Fluid) -> 33.88773145 | G134: 0.001977573482 | H134: 0.02950920458 | I134: =[1]!PropsSI("P","T",$B134+273.15,"Q",1,Fluid)/1000 -> 4141.970266 | J134: =[1]!PropsSI("U","T",$B134+273.15,"Q",0,Fluid)/1000 -> 735.3060027 | K134: =[1]!PropsSI("U","T",$B134+273.15,"Q",1,Fluid)/1000 -> 1495.237134
B135: 81 | C135: =[1]!PropsSI("S","T",$B135+273.15,"Q",0,Fluid)/1000 -> 2.746764126 | D135: =[1]!PropsSI("S","T",$B135+273.15,"Q",1,Fluid)/1000 -> 5.195013689 | E135: =[1]!PropsSI("D","T",$B135+273.15,"Q",0,Fluid) -> 503.4928608 | F135: =[1]!PropsSI("D","T",$B135+273.15,"Q",1,Fluid) -> 34.74070652 | G135: 0.00198612548 | H135: 0.02878467654 | I135: =[1]!PropsSI("P","T",$B135+273.15,"Q",1,Fluid)/1000 -> 4232.591849 | J135: =[1]!PropsSI("U","T",$B135+273.15,"Q",0,Fluid)/1000 -> 740.7686217 | K135: =[1]!PropsSI("U","T",$B135+273.15,"Q",1,Fluid)/1000 -> 1494.388875
B136: 82 | C136: =[1]!PropsSI("S","T",$B136+273.15,"Q",0,Fluid)/1000 -> 2.762342595 | D136: =[1]!PropsSI("S","T",$B136+273.15,"Q",1,Fluid)/1000 -> 5.183975178 | E136: =[1]!PropsSI("D","T",$B136+273.15,"Q",0,Fluid) -> 501.2922797 | F136: =[1]!PropsSI("D","T",$B136+273.15,"Q",1,Fluid) -> 35.61524768 | G136: 0.001994844207 | H136: 0.02807786174 | I136: =[1]!PropsSI("P","T",$B136+273.15,"Q",1,Fluid)/1000 -> 4324.690861 | J136: =[1]!PropsSI("U","T",$B136+273.15,"Q",0,Fluid)/1000 -> 746.2562236 | K136: =[1]!PropsSI("U","T",$B136+273.15,"Q",1,Fluid)/1000 -> 1493.498048
B137: 83 | C137: =[1]!PropsSI("S","T",$B137+273.15,"Q",0,Fluid)/1000 -> 2.777954157 | D137: =[1]!PropsSI("S","T",$B137+273.15,"Q",1,Fluid)/1000 -> 5.172870682 | E137: =[1]!PropsSI("D","T",$B137+273.15,"Q",0,Fluid) -> 499.067723 | F137: =[1]!PropsSI("D","T",$B137+273.15,"Q",1,Fluid) -> 36.51208017 | G137: 0.002003736074 | H137: 0.02738819578 | I137: =[1]!PropsSI("P","T",$B137+273.15,"Q",1,Fluid)/1000 -> 4418.283976 | J137: =[1]!PropsSI("U","T",$B137+273.15,"Q",0,Fluid)/1000 -> 751.7696077 | K137: =[1]!PropsSI("U","T",$B137+273.15,"Q",1,Fluid)/1000 -> 1492.563377
B138: 84 | C138: =[1]!PropsSI("S","T",$B138+273.15,"Q",0,Fluid)/1000 -> 2.79360119 | D138: =[1]!PropsSI("S","T",$B138+273.15,"Q",1,Fluid)/1000 -> 5.161696079 | E138: =[1]!PropsSI("D","T",$B138+273.15,"Q",0,Fluid) -> 496.8184098 | F138: =[1]!PropsSI("D","T",$B138+273.15,"Q",1,Fluid) -> 37.43196773 | G138: 0.002012807859 | H138: 0.0267151331 | I138: =[1]!PropsSI("P","T",$B138+273.15,"Q",1,Fluid)/1000 -> 4513.388071 | J138: =[1]!PropsSI("U","T",$B138+273.15,"Q",0,Fluid)/1000 -> 757.3096117 | K138: =[1]!PropsSI("U","T",$B138+273.15,"Q",1,Fluid)/1000 -> 1491.583521
B139: 85 | C139: =[1]!PropsSI("S","T",$B139+273.15,"Q",0,Fluid)/1000 -> 2.809286178 | D139: =[1]!PropsSI("S","T",$B139+273.15,"Q",1,Fluid)/1000 -> 5.150447056 | E139: =[1]!PropsSI("D","T",$B139+273.15,"Q",0,Fluid) -> 494.5435209 | F139: =[1]!PropsSI("D","T",$B139+273.15,"Q",1,Fluid) -> 38.37571548 | G139: 0.00202206673 | H139: 0.02605814608 | I139: =[1]!PropsSI("P","T",$B139+273.15,"Q",1,Fluid)/1000 -> 4610.020233 | J139: =[1]!PropsSI("U","T",$B139+273.15,"Q",0,Fluid)/1000 -> 762.8771142 | K139: =[1]!PropsSI("U","T",$B139+273.15,"Q",1,Fluid)/1000 -> 1490.55707
B140: 86 | C140: =[1]!PropsSI("S","T",$B140+273.15,"Q",0,Fluid)/1000 -> 2.82501172 | D140: =[1]!PropsSI("S","T",$B140+273.15,"Q",1,Fluid)/1000 -> 5.1391191 | E140: =[1]!PropsSI("D","T",$B140+273.15,"Q",0,Fluid) -> 492.2421954 | F140: =[1]!PropsSI("D","T",$B140+273.15,"Q",1,Fluid) -> 39.34417306 | G140: 0.002031520275 | H140: 0.02541672431 | I140: =[1]!PropsSI("P","T",$B140+273.15,"Q",1,Fluid)/1000 -> 4708.197768 | J140: =[1]!PropsSI("U","T",$B140+273.15,"Q",0,Fluid)/1000 -> 768.4730377 | K140: =[1]!PropsSI("U","T",$B140+273.15,"Q",1,Fluid)/1000 -> 1489.482538
B141: 87 | C141: =[1]!PropsSI("S","T",$B141+273.15,"Q",0,Fluid)/1000 -> 2.840780541 | D141: =[1]!PropsSI("S","T",$B141+273.15,"Q",1,Fluid)/1000 -> 5.127707485 | E141: =[1]!PropsSI("D","T",$B141+273.15,"Q",0,Fluid) -> 489.9135283 | F141: =[1]!PropsSI("D","T",$B141+273.15,"Q",1,Fluid) -> 40.33823813 | G141: 0.002041176539 | H141: 0.02479037376 | I141: =[1]!PropsSI("P","T",$B141+273.15,"Q",1,Fluid)/1000 -> 4807.938215 | J141: =[1]!PropsSI("U","T",$B141+273.15,"Q",0,Fluid)/1000 -> 774.0983525 | K141: =[1]!PropsSI("U","T",$B141+273.15,"Q",1,Fluid)/1000 -> 1488.358357
B142: 88 | C142: =[1]!PropsSI("S","T",$B142+273.15,"Q",0,Fluid)/1000 -> 2.856595502 | D142: =[1]!PropsSI("S","T",$B142+273.15,"Q",1,Fluid)/1000 -> 5.116207247 | E142: =[1]!PropsSI("D","T",$B142+273.15,"Q",0,Fluid) -> 487.5565667 | F142: =[1]!PropsSI("D","T",$B142+273.15,"Q",1,Fluid) -> 41.35886016 | G142: 0.00205104406 | H142: 0.02417861605 | I142: =[1]!PropsSI("P","T",$B142+273.15,"Q",1,Fluid)/1000 -> 4909.259353 | J142: =[1]!PropsSI("U","T",$B142+273.15,"Q",0,Fluid)/1000 -> 779.7540795 | K142: =[1]!PropsSI("U","T",$B142+273.15,"Q",1,Fluid)/1000 -> 1487.182871
B143: 89 | C143: =[1]!PropsSI("S","T",$B143+273.15,"Q",0,Fluid)/1000 -> 2.87245961 | D143: =[1]!PropsSI("S","T",$B143+273.15,"Q",1,Fluid)/1000 -> 5.104613173 | E143: =[1]!PropsSI("D","T",$B143+273.15,"Q",0,Fluid) -> 485.1703062 | F143: =[1]!PropsSI("D","T",$B143+273.15,"Q",1,Fluid) -> 42.40704469 | G143: 0.00206113191 | H143: 0.02358098772 | I143: =[1]!PropsSI("P","T",$B143+273.15,"Q",1,Fluid)/1000 -> 5012.179216 | J143: =[1]!PropsSI("U","T",$B143+273.15,"Q",0,Fluid)/1000 -> 785.4412947 | K143: =[1]!PropsSI("U","T",$B143+273.15,"Q",1,Fluid)/1000 -> 1485.954333
B144: 90 | C144: =[1]!PropsSI("S","T",$B144+273.15,"Q",0,Fluid)/1000 -> 2.88837603 | D144: =[1]!PropsSI("S","T",$B144+273.15,"Q",1,Fluid)/1000 -> 5.092919775 | E144: =[1]!PropsSI("D","T",$B144+273.15,"Q",0,Fluid) -> 482.7536869 | F144: =[1]!PropsSI("D","T",$B144+273.15,"Q",1,Fluid) -> 43.48385793 | G144: 0.002071449742 | H144: 0.02299703954 | I144: =[1]!PropsSI("P","T",$B144+273.15,"Q",1,Fluid)/1000 -> 5116.716105 | J144: =[1]!PropsSI("U","T",$B144+273.15,"Q",0,Fluid)/1000 -> 791.161134 | K144: =[1]!PropsSI("U","T",$B144+273.15,"Q",1,Fluid)/1000 -> 1484.670893
B145: 91 | C145: =[1]!PropsSI("S","T",$B145+273.15,"Q",0,Fluid)/1000 -> 2.904348099 | D145: =[1]!PropsSI("S","T",$B145+273.15,"Q",1,Fluid)/1000 -> 5.081121271 | E145: =[1]!PropsSI("D","T",$B145+273.15,"Q",0,Fluid) -> 480.3055885 | F145: =[1]!PropsSI("D","T",$B145+273.15,"Q",1,Fluid) -> 44.59043195 | G145: 0.002082007838 | H145: 0.02242633579 | I145: =[1]!PropsSI("P","T",$B145+273.15,"Q",1,Fluid)/1000 -> 5222.888599 | J145: =[1]!PropsSI("U","T",$B145+273.15,"Q",0,Fluid)/1000 -> 796.9147976 | K145: =[1]!PropsSI("U","T",$B145+273.15,"Q",1,Fluid)/1000 -> 1483.33059
B146: 92 | C146: =[1]!PropsSI("S","T",$B146+273.15,"Q",0,Fluid)/1000 -> 2.920379343 | D146: =[1]!PropsSI("S","T",$B146+273.15,"Q",1,Fluid)/1000 -> 5.069211558 | E146: =[1]!PropsSI("D","T",$B146+273.15,"Q",0,Fluid) -> 477.8248255 | F146: =[1]!PropsSI("D","T",$B146+273.15,"Q",1,Fluid) -> 45.72797043 | G146: 0.002092817172 | H146: 0.02186845361 | I146: =[1]!PropsSI("P","T",$B146+273.15,"Q",1,Fluid)/1000 -> 5330.715574 | J146: =[1]!PropsSI("U","T",$B146+273.15,"Q",0,Fluid)/1000 -> 802.7035563 | K146: =[1]!PropsSI("U","T",$B146+273.15,"Q",1,Fluid)/1000 -> 1481.931347
B147: 93 | C147: =[1]!PropsSI("S","T",$B147+273.15,"Q",0,Fluid)/1000 -> 2.936473493 | D147: =[1]!PropsSI("S","T",$B147+273.15,"Q",1,Fluid)/1000 -> 5.057184181 | E147: =[1]!PropsSI("D","T",$B147+273.15,"Q",0,Fluid) -> 475.3101411 | F147: =[1]!PropsSI("D","T",$B147+273.15,"Q",1,Fluid) -> 46.89775497 | G147: 0.002103889468 | H147: 0.02132298232 | I147: =[1]!PropsSI("P","T",$B147+273.15,"Q",1,Fluid)/1000 -> 5440.216217 | J147: =[1]!PropsSI("U","T",$B147+273.15,"Q",0,Fluid)/1000 -> 808.5287573 | K147: =[1]!PropsSI("U","T",$B147+273.15,"Q",1,Fluid)/1000 -> 1480.470955
B148: 94 | C148: =[1]!PropsSI("S","T",$B148+273.15,"Q",0,Fluid)/1000 -> 2.952634505 | D148: =[1]!PropsSI("S","T",$B148+273.15,"Q",1,Fluid)/1000 -> 5.045032309 | E148: =[1]!PropsSI("D","T",$B148+273.15,"Q",0,Fluid) -> 472.7602007 | F148: =[1]!PropsSI("D","T",$B148+273.15,"Q",1,Fluid) -> 48.1011523 | G148: 0.002115237278 | H148: 0.02078952275 | I148: =[1]!PropsSI("P","T",$B148+273.15,"Q",1,Fluid)/1000 -> 5551.410042 | J148: =[1]!PropsSI("U","T",$B148+273.15,"Q",0,Fluid)/1000 -> 814.3918318 | K148: =[1]!PropsSI("U","T",$B148+273.15,"Q",1,Fluid)/1000 -> 1478.94707
B149: 95 | C149: =[1]!PropsSI("S","T",$B149+273.15,"Q",0,Fluid)/1000 -> 2.968866583 | D149: =[1]!PropsSI("S","T",$B149+273.15,"Q",1,Fluid)/1000 -> 5.032748691 | E149: =[1]!PropsSI("D","T",$B149+273.15,"Q",0,Fluid) -> 470.1735852 | F149: =[1]!PropsSI("D","T",$B149+273.15,"Q",1,Fluid) -> 49.33962217 | G149: 0.002126874056 | H149: 0.02026768662 | I149: =[1]!PropsSI("P","T",$B149+273.15,"Q",1,Fluid)/1000 -> 5664.316912 | J149: =[1]!PropsSI("U","T",$B149+273.15,"Q",0,Fluid)/1000 -> 820.2943026 | K149: =[1]!PropsSI("U","T",$B149+273.15,"Q",1,Fluid)/1000 -> 1477.357189
B150: 96 | C150: =[1]!PropsSI("S","T",$B150+273.15,"Q",0,Fluid)/1000 -> 2.985174201 | D150: =[1]!PropsSI("S","T",$B150+273.15,"Q",1,Fluid)/1000 -> 5.020325624 | E150: =[1]!PropsSI("D","T",$B150+273.15,"Q",0,Fluid) -> 467.5487817 | F150: =[1]!PropsSI("D","T",$B150+273.15,"Q",1,Fluid) -> 50.61472633 | G150: 0.002138814257 | H150: 0.01975709586 | I150: =[1]!PropsSI("P","T",$B150+273.15,"Q",1,Fluid)/1000 -> 5778.957054 | J150: =[1]!PropsSI("U","T",$B150+273.15,"Q",0,Fluid)/1000 -> 826.2377937 | K150: =[1]!PropsSI("U","T",$B150+273.15,"Q",1,Fluid)/1000 -> 1475.698649
B151: 97 | C151: =[1]!PropsSI("S","T",$B151+273.15,"Q",0,Fluid)/1000 -> 3.001562135 | D151: =[1]!PropsSI("S","T",$B151+273.15,"Q",1,Fluid)/1000 -> 5.007754905 | E151: =[1]!PropsSI("D","T",$B151+273.15,"Q",0,Fluid) -> 464.8841749 | F151: =[1]!PropsSI("D","T",$B151+273.15,"Q",1,Fluid) -> 51.92813858 | G151: 0.002151073437 | H151: 0.01925738198 | I151: =[1]!PropsSI("P","T",$B151+273.15,"Q",1,Fluid)/1000 -> 5895.351084 | J151: =[1]!PropsSI("U","T",$B151+273.15,"Q",0,Fluid)/1000 -> 832.2240406 | K151: =[1]!PropsSI("U","T",$B151+273.15,"Q",1,Fluid)/1000 -> 1473.9686
B152: 98 | C152: =[1]!PropsSI("S","T",$B152+273.15,"Q",0,Fluid)/1000 -> 3.018035496 | D152: =[1]!PropsSI("S","T",$B152+273.15,"Q",1,Fluid)/1000 -> 4.995027781 | E152: =[1]!PropsSI("D","T",$B152+273.15,"Q",0,Fluid) -> 462.1780361 | F152: =[1]!PropsSI("D","T",$B152+273.15,"Q",1,Fluid) -> 53.28165614 | G152: 0.002163668374 | H152: 0.01876818539 | I152: =[1]!PropsSI("P","T",$B152+273.15,"Q",1,Fluid)/1000 -> 6013.520031 | J152: =[1]!PropsSI("U","T",$B152+273.15,"Q",0,Fluid)/1000 -> 838.2549019 | K152: =[1]!PropsSI("U","T",$B152+273.15,"Q",1,Fluid)/1000 -> 1472.163993
B153: 99 | C153: =[1]!PropsSI("S","T",$B153+273.15,"Q",0,Fluid)/1000 -> 3.034599763 | D153: =[1]!PropsSI("S","T",$B153+273.15,"Q",1,Fluid)/1000 -> 4.982134895 | E153: =[1]!PropsSI("D","T",$B153+273.15,"Q",0,Fluid) -> 459.4285106 | F153: =[1]!PropsSI("D","T",$B153+273.15,"Q",1,Fluid) -> 54.67721254 | G153: 0.002176617204 | H153: 0.01828915472 | I153: =[1]!PropsSI("P","T",$B153+273.15,"Q",1,Fluid)/1000 -> 6133.48536 | J153: =[1]!PropsSI("U","T",$B153+273.15,"Q",0,Fluid)/1000 -> 844.3323732 | K153: =[1]!PropsSI("U","T",$B153+273.15,"Q",1,Fluid)/1000 -> 1470.28156
B154: 100 | C154: =[1]!PropsSI("S","T",$B154+273.15,"Q",0,Fluid)/1000 -> 3.051260831 | D154: =[1]!PropsSI("S","T",$B154+273.15,"Q",1,Fluid)/1000 -> 4.96906622 | E154: =[1]!PropsSI("D","T",$B154+273.15,"Q",0,Fluid) -> 456.633604 | F154: =[1]!PropsSI("D","T",$B154+273.15,"Q",1,Fluid) -> 56.1168923 | G154: 0.002189939574 | H154: 0.01781994617 | I154: =[1]!PropsSI("P","T",$B154+273.15,"Q",1,Fluid)/1000 -> 6255.269001 | J154: =[1]!PropsSI("U","T",$B154+273.15,"Q",0,Fluid)/1000 -> 850.4586027 | K154: =[1]!PropsSI("U","T",$B154+273.15,"Q",1,Fluid)/1000 -> 1468.317788
B155: 101 | C155: =[1]!PropsSI("S","T",$B155+273.15,"Q",0,Fluid)/1000 -> 3.068025057 | D155: =[1]!PropsSI("S","T",$B155+273.15,"Q",1,Fluid)/1000 -> 4.955810985 | E155: =[1]!PropsSI("D","T",$B155+273.15,"Q",0,Fluid) -> 453.7911655 | F155: =[1]!PropsSI("D","T",$B155+273.15,"Q",1,Fluid) -> 57.60294761 | G155: 0.002203656827 | H155: 0.01736022272 | I155: =[1]!PropsSI("P","T",$B155+273.15,"Q",1,Fluid)/1000 -> 6378.893379 | J155: =[1]!PropsSI("U","T",$B155+273.15,"Q",0,Fluid)/1000 -> 856.6359096 | K155: =[1]!PropsSI("U","T",$B155+273.15,"Q",1,Fluid)/1000 -> 1466.268897
B156: 102 | C156: =[1]!PropsSI("S","T",$B156+273.15,"Q",0,Fluid)/1000 -> 3.08489932 | D156: =[1]!PropsSI("S","T",$B156+273.15,"Q",1,Fluid)/1000 -> 4.942357593 | E156: =[1]!PropsSI("D","T",$B156+273.15,"Q",0,Fluid) -> 450.8988689 | F156: =[1]!PropsSI("D","T",$B156+273.15,"Q",1,Fluid) -> 59.13781754 | G156: 0.002217792212 | H156: 0.01690965344 | I156: =[1]!PropsSI("P","T",$B156+273.15,"Q",1,Fluid)/1000 -> 6504.381447 | J156: =[1]!PropsSI("U","T",$B156+273.15,"Q",0,Fluid)/1000 -> 862.8668044 | K156: =[1]!PropsSI("U","T",$B156+273.15,"Q",1,Fluid)/1000 -> 1464.130806
